Cogmind - Beta 13 @@@ ROGUE MODE // 2024.04.12 @ 05:10:14 Player: Millea Result: Destroyed by Combat Programmer with EMDS Performance ------------- Evolutions (9) 4500 Regions Visited (33) 6600 Robots Destroyed (191) 955 Value Destroyed (7172) 7172 Prototype IDs (109) 2180 Alien Tech Used (2) 400 Bonus (9384) 9384 TOTAL SCORE: 31191 Bonus ------- High Alert Combat Kills 835 Follower Combat Kills 1779 Network Hubs Disabled 400 Aligned with FarCom 300 Met Data Miner 300 Met Imprinter 300 Met Zhirov 300 A7 Reached Mainframe 300 Met R17 at Cetus 500 Met MAIN.C 5000 Friendly Fire -630 Cogmind --------- Core Integrity 0/1600 Matter 290/300 Energy 99/100 System Corruption 0% Temperature Cool (0) Movement Core (50) Location -1/Command Parts ------- > --- POWER (2) -------- (None) > --- PROPULSION (10) -- (None) > --- UTILITY (9) ------ Graphene Brace Advanced Corruption Screen > --- WEAPON (4) ------- (None) > --- INVENTORY (5) ---- Improved Corruption Screen Advanced System Restoration Module Transdimensional Reconstructor HERF Cannon Peak State ------------ > --- POWER ------------ Light Quantum Reactor Light Quantum Reactor > --- PROPULSION ------- Xenon Bombardment Thruster Cooled Nuclear Pulse Thruster Field Propulsion Array Field Propulsion Array Field Propulsion Array Field Propulsion Array > --- UTILITY ---------- Advanced Power Amplifier Large Storage Unit Improved Melee Analysis Suite Advanced Particle Charger Reaction Control System Advanced Cloaking Device Advanced Hacking Suite Advanced System Shield Advanced Corruption Screen > --- WEAPON ----------- Force Lance Force Lance Force Lance > --- INVENTORY -------- Field Propulsion Array Field Propulsion Array Q-thruster Impulse Thruster Array Antimissile System Improved System Guard Improved Corruption Screen Advanced System Restoration Module Dimensional Node Initializer Transdimensional Reconstructor HERF Cannon HERF Cannon [Rating: 169] Favorites ----------- Power Micro Nuclear Core Engine Light Angular Momentum Engine Power Core Micro Nuclear Core Reactor Light Quantum Reactor Propulsion Cooled Nuclear Pulse Thruster Treads Light Treads Leg Carbon-fiber Leg Wheel Compact Wheel Hover Unit Cooled Gravmag System Flight Unit Cooled Nuclear Pulse Thruster Utility Hacking Suite Device Advanced Power Amplifier Storage Large Storage Unit Processor Improved Melee Analysis Suite Hackware Hacking Suite Protection Hardened Light Armor Plating Weapon Spear Energy Gun Medium Laser Energy Cannon Heavy Ion Cannon Ballistic Gun Improved Assault Rifle Launcher Heavy Missile Launcher Slashing Weapon Greatsword Piercing Weapon Spear Special Melee Weapon Improved Datajack Build | -11 -10 -10 -9 -9 -9 -8 -8 -7 -7 -7 -7 -6 -6 -6 -6 -6 -5 -5 -5 -5 -5 -5 -5 -5 -4 -4 -4 -4 -3 -3 -2 -1 -1 ------- Run | Yrd Mat Min Mat Min Exi Min Mat Fac Low Low Dat Pro Fac Low Low Zio Pro Fac Was Fac Ext Cet Arc Hub Fac Upp Upp Zhi Pro Res Res Acc Com Slots Evolved 18 | . . . 2 . . . 2 2 . . . . 2 . . . . 2 . . . . . . 2 . . . . 2 2 2 . Power 1 | . . . . . . . . . . . . . 1 . . . . . . . . . . . . . . . . . . . . Propulsion 8 | . . . . . . . 1 2 . . . . . . . . . 1 . . . . . . 2 . . . . . . 2 . Utility 7 | . . . . . . . 1 . . . . . 1 . . . . 1 . . . . . . . . . . . 2 2 . . Weapon 2 | . . . 2 . . . . . . . . . . . . . . . . . . . . . . . . . . . . . . Parts Attached 341 | 6 1 . 17 6 2 . 30 54 2 1 1 4 38 2 . 2 . 27 3 11 10 33 3 7 16 3 . 7 . 14 4 25 12 Power 40 | 1 . . 2 1 . . 2 7 . . . 1 6 1 . . . 3 2 . . 4 . . 3 . . . . 2 . 3 2 Engine 11 | 1 . . 1 1 . . 1 2 . . . . 2 . . . . 1 1 . . . . . 1 . . . . . . . . Core 14 | . . . 1 . . . 1 5 . . . 1 3 1 . . . 2 . . . . . . . . . . . . . . . Reactor 15 | . . . . . . . . . . . . . 1 . . . . . 1 . . 4 . . 2 . . . . 2 . 3 2 Propulsion 125 | 2 . . 3 2 1 . 13 18 . . . . 14 1 . . . 8 . 6 5 16 . 5 7 . . 5 . 3 1 11 4 Treads 15 | 2 . . 3 2 1 . 5 . . . . . . . . . . . . . . 2 . . . . . . . . . . . Leg 9 | . . . . . . . 3 . . . . . . . . . . . . . . 6 . . . . . . . . . . . Wheel 3 | . . . . . . . 3 . . . . . . . . . . . . . . . . . . . . . . . . . . Hover 5 | . . . . . . . . . . . . . 1 . . . . . . . . . . . 1 . . 3 . . . . . Flight 93 | . . . . . . . 2 18 . . . . 13 1 . . . 8 . 6 5 8 . 5 6 . . 2 . 3 1 11 4 Utility 84 | 1 1 . 3 2 1 . 4 15 . . . 3 5 . . . . 6 . 3 1 6 3 1 5 3 . 2 . 6 3 8 2 Device 35 | . . . 3 1 . . 1 6 . . . 1 1 . . . . 2 . 1 1 . 1 . 4 2 . 1 . 2 2 4 2 Storage 8 | 1 1 . . . 1 . . . . . . . . . . . . 1 . . . 1 1 . 1 . . . . 1 . . . Processor 6 | . . . . . . . 2 1 . . . . . . . . . . . . . . . . . . . . . . 1 2 . Hackware 22 | . . . . . . . . 6 . . . 1 4 . . . . 2 . 1 . 1 1 1 . 1 . 1 . 2 . 1 . Protection 13 | . . . . 1 . . 1 2 . . . 1 . . . . . 1 . 1 . 4 . . . . . . . 1 . 1 . Artifact . | . . . . . . . . . . . . . . . . . . . . . . . . . . . . . . . . . . Weapon 92 | 2 . . 9 1 . . 11 14 2 1 1 . 13 . . 2 . 10 1 2 4 7 . 1 1 . . . . 3 . 3 4 Energy Gun 10 | . . . 5 . . . . 2 . . . . . . . . . 1 1 . . . . . . . . . . 1 . . . Energy Cannon 10 | . . . . 1 . . 5 1 . . . . . . . . . . . . . . . . . . . . . . . 3 . Ballistic Gun 35 | 2 . . 4 . . . 6 7 2 . . . 9 . . . . . . . 1 4 . . . . . . . . . . . Ballistic Cannon . | . . . . . . . . . . . . . . . . . . . . . . . . . . . . . . . . . . Launcher 4 | . . . . . . . . . . . . . . . . 1 . 1 . . . 1 . 1 . . . . . . . . . Special Weapon . | . . . . . . . . . . . . . . . . . . . . . . . . . . . . . . . . . . Impact Weapon . | . . . . . . . . . . . . . . . . . . . . . . . . . . . . . . . . . . Slashing Weapon 11 | . . . . . . . . 1 . 1 . . 2 . . . . 6 . 1 . . . . . . . . . . . . . Piercing Weapon 21 | . . . . . . . . 3 . . 1 . 2 . . 1 . 2 . 1 2 2 . . 1 . . . . 2 . . 4 Special Melee Weapon 1 | . . . . . . . . . . . . . . . . . . . . . 1 . . . . . . . . . . . . Unidentified Prototypes 15 | . . . 3 . . . 1 2 . . . . 2 . . 1 . . . . . 3 . . . . . 2 . 1 . . . Corrupted Parts 1 | . . . . . . . . . . . . . . . . . . . . . . 1 . . . . . . . . . . . System Corruption 5 | . . . . . . . . . . . . . . . . . . . . . . 5 . . . . . . . . . . . Parts Lost 108 | . . . 4 . . . 5 8 . . . 1 6 1 1 . . 5 . . 10 14 2 9 2 . 2 . 1 . . 17 20 Power 17 | . . . . . . . 1 2 . . . 1 2 . . . . 1 . . 1 2 . 1 2 . 1 . . . . 2 1 Propulsion 55 | . . . 2 . . . 4 3 . . . . 3 1 1 . . 2 . . 5 7 2 6 . . 1 . . . . 8 10 Utility 21 | . . . 1 . . . . 2 . . . . . . . . . 2 . . 3 3 . 1 . . . . . . . 3 6 Weapon 15 | . . . 1 . . . . 1 . . . . 1 . . . . . . . 1 2 . 1 . . . . 1 . . 4 3 Highest Loss Streak 14 | . . . 1 . . . 4 3 . . . 1 5 1 1 . . 2 . . 4 4 2 7 1 . 2 . 1 . . 10 14 To Critical Strikes 4 | . . . . . . . 1 . . . . . . . . . . . . . . 2 . . . . . . . . . 1 . Average Slot Usage (%) 84 | . 92 100 93 100 100 100 94 94 100 100 100 96 90 93 92 80 80 78 80 82 83 87 75 72 48 63 53 55 58 69 71 76 66 Engine 2 | . 14 14 8 3 11 11 6 . . . . . 3 2 . . . . 3 5 2 . . . . 5 . . . . . . . Core 4 | . . . 2 7 . . 2 6 7 7 7 4 6 10 13 13 13 9 5 5 5 . . . . . . . . . . . . Reactor 1 | . . . . . . . . . . . . . . . . . . . . . . 4 5 4 4 . . . . 4 4 4 7 Treads 4 | . 28 28 17 22 22 22 16 . . . . . . . . . . . . . . . . . . . . . . . . . . Leg 1 | . . . . . . . 6 . . . . . . . . . . . . . . 23 . . . . . . . . . . . Flight 22 | . . . . . . . . 36 38 38 38 38 31 33 32 26 26 30 35 34 34 6 34 30 13 26 21 18 15 19 21 24 22 Device 4 | . . . 9 7 . . 4 3 . . . 2 . . . . . 3 . . 2 . 3 . 3 11 15 14 15 12 17 10 12 Storage 3 | . 21 28 12 11 11 11 9 . . . . . . . . . . 1 5 5 5 4 1 . . . . . . 3 4 4 3 Processor 1 | . . . . . . . 8 1 . . . . . . . . . . . . . . . . . . . . . . 2 8 7 Hackware 13 | . . . . . . . . 15 15 15 15 15 25 26 26 26 26 20 23 20 16 11 17 22 21 13 10 10 10 10 8 9 7 Protection 1 | . . . . 3 11 11 3 . 7 7 7 4 . . . . . . . 1 . 9 5 4 . . . . . 4 4 1 . Energy Gun 1 | . . . 12 7 . . . . . . . . . . . . . . . . . . . . . . . . . 1 . . . Energy Cannon 1 | . . . . 3 11 11 15 . . . . . . . . . . . . . . . . . . . . . . . . 4 . Ballistic Gun 9 | . 28 28 29 33 33 33 18 5 21 23 16 15 13 13 13 6 6 . . . 1 7 . . . . . . . . . . . Slashing Weapon 2 | . . . . . . . . 6 . 1 7 7 1 . . . . 7 5 4 1 . . . . . . . . . . . . Piercing Weapon 6 | . . . . . . . . 17 8 5 6 7 5 6 6 6 6 . . . 8 11 5 5 3 5 5 5 1 4 8 6 4 Naked Turns . | . . . . . . . . . . . . . . . . . . . . . . . . . . . . . . . . . . Heaviest Build 83 | 13 14 14 25 34 39 39 58 21 23 24 24 22 30 29 26 23 23 41 33 37 37 83 21 27 22 19 19 12 12 65 50 72 74 Greatest Support 85 | 40 40 40 40 40 40 40 60 29 29 29 29 29 30 30 30 24 24 45 36 37 47 85 26 29 54 54 54 47 39 55 62 78 78 Greatest Overweight (x) 11 | . . . 1 . . . 11 . . . . . 1 . . . . 1 . . . 4 1 . . . . 1 . 1 . . 1 Average Overweight (x) . | . . . . . . . . . . . . . . . . . . . . . . . . . . . . . . . . . . Largest Inventory Capacity 15 | 8 8 8 8 8 10 10 10 10 5 5 5 5 5 5 5 5 5 15 15 15 15 15 5 5 5 5 5 5 5 15 15 15 15 Average Capacity 8 | 6 8 8 8 8 8 10 10 5 5 5 5 5 5 5 5 5 5 8 15 15 15 14 5 5 5 5 5 5 5 14 15 15 14 Most Carried 15 | 2 6 6 8 8 10 10 10 9 5 5 5 5 5 5 5 5 5 11 13 15 15 15 5 5 5 5 5 5 5 15 15 15 15 Average Carried 7 | . 3 6 5 7 8 10 9 4 5 5 5 5 4 4 5 5 5 6 11 13 13 13 5 4 4 4 5 4 5 8 14 13 11 Final Capacity 15 | 8 8 8 8 8 10 10 10 5 5 5 5 5 5 5 5 5 5 15 15 15 15 5 5 5 5 5 5 5 5 15 15 15 5 Final Carried 15 | 2 6 6 8 8 10 10 10 5 5 5 5 5 5 5 5 5 5 9 13 15 15 5 5 3 5 5 5 5 5 15 15 15 4 Class Distribution -------------------- 64% | Hacker-Sprinter 8% | Gunner 5% | Scavenger-Mutant 4% | Hacker-Mutant 4% | Tank 3% | Scavenger-Sprinter 3% | Mutant Dominant Class ---------------- Mutant | -10/Materials Mutant | -10/Mines Gunner | -9/Materials Gunner | -9/Mines Tank | -9/Exiles Skirmisher | -8/Mines Scavenger-Skirmisher | -8/Materials Hacker-Sprinter | -7/Factory Hacker-Sprinter | -7/Lower Caves Hacker-Sprinter | -7/Lower Caves Hacker-Sprinter | -7/Data Miner Hacker-Sprinter | -6/Proximity Caves Hacker-Sprinter | -6/Factory Hacker-Sprinter | -6/Lower Caves Hacker-Sprinter | -6/Lower Caves Hacker-Sprinter | -6/Zion Hacker-Sprinter | -5/Proximity Caves Hacker-Sprinter | -5/Factory Hacker-Sprinter | -5/Waste Hacker-Sprinter | -5/Factory Hacker-Sprinter | -5/Extension Scavenger-Mutant | -5/Cetus Scavenger-Sprinter | -5/Archives Hacker-Sprinter | -5/Hub_04(d) Hacker-Sprinter | -4/Factory Hacker-Sprinter | -4/Upper Caves Hacker-Mutant | -4/Upper Caves Hacker-Sprinter | -4/Zhirov Hacker-Sprinter | -3/Proximity Caves Hacker-Sprinter | -3/Research Hacker-Sprinter | -2/Research Hacker-Sprinter | -1/Access Hacker-Sprinter | -1/Command Resources | -11 -10 -10 -9 -9 -9 -8 -8 -7 -7 -7 -7 -6 -6 -6 -6 -6 -5 -5 -5 -5 -5 -5 -5 -5 -4 -4 -4 -4 -3 -3 -2 -1 -1 ----------- Run | Yrd Mat Min Mat Min Exi Min Mat Fac Low Low Dat Pro Fac Low Low Zio Pro Fac Was Fac Ext Cet Arc Hub Fac Upp Upp Zhi Pro Res Res Acc Com Matter Collected 4891 | 208 22 . 597 185 . 56 541 702 20 10 . 51 359 20 20 . 4 279 70 117 167 765 35 . 158 43 2 . 85 149 40 88 98 Remotely 30 | . . . . . . . . . . . . . . . . . . . . . . . . . 30 . . . . . . . . Salvage Created 8205 | . 22 . 1006 344 . 104 671 1485 71 . . 178 1180 47 20 . . 754 . 26 441 440 35 146 174 86 . . . 161 191 525 98 Parts 485 | . 4 . 74 15 . 5 41 107 4 . . 13 49 5 1 . . 32 . 6 29 22 4 12 7 5 . . . 14 7 26 3 Haulers Intercepted 21 | . . . 2 . . . 2 5 . . . . 4 . . . . 4 . . . . . . 2 . . . . . 1 1 . Recyclers Shooed 2 | . . . . . . . 1 . . . . . 1 . . . . . . . . . . . . . . . . . . . . Parts Field Recycled . | . . . . . . . . . . . . . . . . . . . . . . . . . . . . . . . . . . Retrieved Matter . | . . . . . . . . . . . . . . . . . . . . . . . . . . . . . . . . . . Parts Self-Destructed 45 | . . . . . . . . . 8 . . 9 . 8 4 . . . . . . . . . . 16 . . . . . . . Prevented 3 | . . . . . . . . . 1 . . . . . . . . . . . . . . . . 2 . . . . . . . Kills | -11 -10 -10 -9 -9 -9 -8 -8 -7 -7 -7 -7 -6 -6 -6 -6 -6 -5 -5 -5 -5 -5 -5 -5 -5 -4 -4 -4 -4 -3 -3 -2 -1 -1 ------- Run | Yrd Mat Min Mat Min Exi Min Mat Fac Low Low Dat Pro Fac Low Low Zio Pro Fac Was Fac Ext Cet Arc Hub Fac Upp Upp Zhi Pro Res Res Acc Com Combat Hostiles Destroyed 124 | . 2 . 20 8 . 2 14 18 2 . . 4 10 1 1 . . 5 . 1 7 19 . 1 . . . . . 2 . 7 . Melee 59 | . . . . . . . . 18 2 . . 4 10 1 . . . 5 . 1 7 2 . . . . . . . 2 . 7 . Guns 51 | . 2 . 20 8 . 1 11 . . . . . . . 1 . . . . . . 8 . . . . . . . . . . . Cannons 4 | . . . . . . 1 3 . . . . . . . . . . . . . . . . . . . . . . . . . . AOE 9 | . . . . . . . . . . . . . . . . . . . . . . 9 . . . . . . . . . . . Classes Destroyed 17 | . 1 . 8 . . 1 1 4 1 . . . . . . . . . . . . . . . . 1 . . . . . . . Worker 12 | . . . 2 . . . 1 4 . . . . 2 . . . . . . . . . . 3 . . . . . . . . . Builder 2 | . . . . . . . . 1 . . . . . . . . . . . . . . . 1 . . . . . . . . . Tunneler 2 | . . . . . . . . 2 . . . . . . . . . . . . . . . . . . . . . . . . . Hauler 21 | . . . 2 . . . 2 5 . . . . 4 . . . . 4 . . . . . . 2 . . . . . 1 1 . Recycler 6 | . . . 1 . . . 1 3 . . . . 1 . . . . . . . . . . . . . . . . . . . . Operator 8 | . . . 2 . . . . 1 . . . . 2 . . . . . . . 1 . 1 . . . . . . 1 . . . Drone 1 | . . . . . . . . . 1 . . . . . . . . . . . . . . . . . . . . . . . . Watcher 17 | . . . 1 . . . . 6 . . . . 2 . . . . 3 . . . 1 . . . . . . . . 2 . 2 Swarmer 37 | . 2 . 4 . . . 3 7 . . . 1 2 . 1 . . 2 . . 1 10 . . . . . . . . . 4 . Cutter 4 | . . . . . . . 3 . . . . . . . . . . . . 1 . . . . . . . . . . . . . Grunt 38 | . . . 12 6 . 1 6 5 . . . . 4 . . . . . . . 1 1 . . . . . . . . . 2 . Brawler 1 | . . . . . . 1 . . . . . . . . . . . . . . . . . . . . . . . . . . . Duelist 2 | . . . 1 1 . . . . . . . . . . . . . . . . . . . . . . . . . . . . . Sentry 14 | . . . 3 1 . . 2 2 . . . . . . . . . 1 . . 3 . . 1 . . . . . . . 1 . Hunter 8 | . . . . . . . . 2 1 . . 1 3 . . . . . . . . 1 . . . . . . . . . . . Programmer 12 | . . . . . . . . 2 . . . 2 1 1 . . . 2 . . . 2 . . . . . . . 2 . . . Cetus Guard 5 | . . . . . . . . . . . . . . . . . . . . . . 5 . . . . . . . . . . . Samaritan 2 | . . . . . . . . . . . . . . . . . . . . . . . . . . 2 . . . . . . . Thug 1 | . . . . . . . . . . . . . . . . . . . . . 1 . . . . . . . . . . . . Guerrilla 1 | . . . . . . . . . . . . . . . . . . . . . 1 . . . . . . . . . . . . Best Kill Streak 8 | . 2 . 6 5 . 2 3 5 1 . . 2 6 1 1 . . 3 . 1 1 7 1 5 1 . . . . 1 1 8 1 Combat Bots Only 7 | . 2 . 5 5 . 2 3 4 1 . . 2 2 1 1 . . 2 . 1 1 7 . 1 . . . . . 1 . 7 . Max Kills in Single Turn 4 | . 2 . 2 2 . 1 3 1 1 . . 1 1 1 1 . . 1 . 1 1 4 1 4 1 1 . . . 1 1 1 1 Gunslinging 1 | . 1 . 1 1 . . . . . . . . . . . . . . . . . . . . . . . . . . . . . Exploded 4 | . . . . . . . . . . . . . . . . . . . . . . 4 . . . . . . . . . . . Melee 1 | . . . . . . . . 1 1 . . 1 1 1 . . . 1 . 1 1 1 . . . . . . . 1 . 1 . Uniques/NPCs Destroyed . | . . . . . . . . . . . . . . . . . . . . . . . . . . . . . . . . . . Combat | -11 -10 -10 -9 -9 -9 -8 -8 -7 -7 -7 -7 -6 -6 -6 -6 -6 -5 -5 -5 -5 -5 -5 -5 -5 -4 -4 -4 -4 -3 -3 -2 -1 -1 -------- Run | Yrd Mat Min Mat Min Exi Min Mat Fac Low Low Dat Pro Fac Low Low Zio Pro Fac Was Fac Ext Cet Arc Hub Fac Upp Upp Zhi Pro Res Res Acc Com Hostile Shots Fired 1421 | . 10 . 103 12 . 10 66 171 15 10 5 25 117 19 12 . 2 57 . 24 38 172 9 61 31 . 24 . 54 38 2 188 146 Missed 647 | . 1 . 23 4 . 2 13 94 9 7 3 14 55 7 4 . . 25 . 11 16 57 4 28 18 . 18 . 39 22 1 104 68 Damage Taken 16446 | . 72 . 919 140 . 133 982 817 117 22 96 183 810 212 149 . 110 659 . 480 572 2336 141 941 445 . 177 . 352 307 30 2125 3119 Core 3741 | . 9 . 112 42 . 14 179 153 13 . . 55 166 . 44 . 34 261 . 127 97 129 . 252 227 . 24 . 52 121 30 155 1445 Absorbed by Shields 239 | . . . . . . . . . . . . . . . . . . . . . 33 180 . . . . . . . . . 26 . Redirected to Shielding 216 | . . . . . . . . . . . . . . . . . . . . 49 . . . . . . . . . 44 . 123 . Regen/Repaired (Parts) 568 | . . . . . . . . 55 . . . . 226 . . 103 . 80 2 44 . . . . 33 . . . . . . 25 . Core Remaining (%) 73 | 100 . 96 . . . 58 67 . . . . 68 . . . . 71 . . . . . . 13 . . . . 73 90 97 . . Volleys Fired 218 | . 4 . 68 13 . 4 49 13 . . . . 1 . 3 . . 2 . . . 58 . . . . . . . . . . 3 Largest 4 | . 2 . 4 4 . 4 4 4 . . . . 1 . 2 . . 1 . . . 2 . . . . . . . . . . 1 Hottest 260 | . 40 . 130 134 . 137 260 98 . . . . 28 . 56 . . 39 . . . 58 . . . . . . . . . . 88 Shots Fired 559 | . 8 . 238 52 . 14 126 25 . . . . 1 . 6 . . 2 . . . 84 . . . . . . . . . . 3 Gun 507 | . 8 . 238 52 . 12 96 25 . . . . 1 . 6 . . . . . . 69 . . . . . . . . . . . Cannon 35 | . . . . . . 2 30 . . . . . . . . . . . . . . . . . . . . . . . . . 3 Launcher 17 | . . . . . . . . . . . . . . . . . . 2 . . . 15 . . . . . . . . . . . Special . | . . . . . . . . . . . . . . . . . . . . . . . . . . . . . . . . . . Kinetic 415 | . 8 . 159 39 . 12 96 25 . . . . 1 . 6 . . . . . . 69 . . . . . . . . . . . Thermal 101 | . . . 56 13 . 2 30 . . . . . . . . . . . . . . . . . . . . . . . . . . Explosive 17 | . . . . . . . . . . . . . . . . . . 2 . . . 15 . . . . . . . . . . . Electromagnetic 26 | . . . 23 . . . . . . . . . . . . . . . . . . . . . . . . . . . . . 3 Robot Hit Streak 17 | . 3 . 10 8 . 14 17 6 . . . . . . 3 . . . . . . 10 . . . . . . . . . . 1 Robot Miss Streak 6 | . 4 . 6 2 . . 4 3 . . . . . . 2 . . . . . . 4 . . . . . . . . . . 2 Penetration Max 1 | . . . . . . . . . . . . . . . . . . . . . . 1 . . . . . . . . . . . Secondary Targets 11 | . 1 . 6 1 . . 2 . . . . . . . . . . . . . . 1 . . . . . . . . . . . Max Gunslinging Chain 1 | . 1 . 1 1 . . 1 . . . . . . . . . . . . . . 1 . . . . . . . . . . . Shots Hit Robots 568 | . 3 . 136 36 . 11 62 78 5 . . 15 57 2 3 . . 26 . 1 35 55 2 . 3 3 . . . 10 6 17 2 Core Hits 262 | . 2 . 49 15 . 5 30 40 2 . . 5 24 1 1 . . 11 . 1 10 39 1 7 2 1 . . . 2 3 10 1 Critical Kills 2 | . . . . . . . . . . . . . . . . . . . . . . 2 . . . . . . . . . . . Critical Parts Destroyed 6 | . . . . . . . . . . . . . . . . . . . . . . 6 . . . . . . . . . . . Critical Strikes 34 | . . . 6 . . . . 5 . . . . 4 . . . . 2 . . 4 9 . . . 1 . . . 1 . 2 . Burn 6 | . . . 6 . . . . . . . . . . . . . . . . . . . . . . . . . . . . . . Destroy 9 | . . . . . . . . . . . . . . . . . . . . . . 9 . . . . . . . . . . . Sever 7 | . . . . . . . . . . . . . 3 . . . . 2 . . 2 . . . . . . . . . . . . Impale 12 | . . . . . . . . 5 . . . . 1 . . . . . . . 2 . . . . 1 . . . 1 . 2 . Melee Attacks 523 | . . . . . . . . 122 6 8 26 18 82 5 . . . 74 . 6 67 11 2 7 8 6 . . . 23 9 34 9 Impact . | . . . . . . . . . . . . . . . . . . . . . . . . . . . . . . . . . . Slashing 161 | . . . . . . . . 26 . 7 8 3 36 . . . . 63 . 6 12 . . . . . . . . . . . . Piercing 350 | . . . . . . . . 96 6 1 18 15 46 5 . . . 11 . . 43 11 2 7 8 6 . . . 23 9 34 9 Sneak Attacks 67 | . . . . . . . . 20 2 . . 1 12 . . . . 5 . . 18 . 1 . 2 3 . . . . 1 2 . Combat Hostiles 12 | . . . . . . . . 4 2 . . 1 2 . . . . . . . 3 . . . . . . . . . . . . Follow-up Attacks 32 | . . . . . . . . 19 . . . 2 . . . . . 3 . . 2 2 . . . . . . . 3 . 1 . Damage Inflicted 19350 | . 31 . 1867 564 . 206 1381 2999 206 . . 551 2552 62 66 . . 1808 . 55 1326 2675 115 533 209 224 . . . 476 394 893 157 Guns 4722 | . 31 . 1806 559 . 164 947 161 . . . . . . 66 . . . . . . 988 . . . . . . . . . . . Cannons 558 | . . . . . . 42 434 . . . . . . . . . . . . . . . . . . . . . . . . . 82 Explosions 2026 | . . . 61 . . . . . . . . . . . . . . . . . . 1432 . 533 . . . . . . . . . Melee 12039 | . . . . . . . . 2838 206 . . 551 2552 62 . . . 1808 . 55 1326 255 115 . 209 224 . . . 476 394 893 75 Ramming 5 | . . . . 5 . . . . . . . . . . . . . . . . . . . . . . . . . . . . . Kinetic 3935 | . 31 . 1140 438 . 164 947 161 . . . . . . 66 . . . . . . 988 . . . . . . . . . . . Thermal 1140 | . . . 543 121 . 42 434 . . . . . . . . . . . . . . . . . . . . . . . . . . Explosive 1432 | . . . . . . . . . . . . . . . . . . . . . . 1432 . . . . . . . . . . . Electromagnetic 799 | . . . 184 . . . . . . . . . . . . . . . . . . . . 533 . . . . . . . . 82 Impact . | . . . . . . . . . . . . . . . . . . . . . . . . . . . . . . . . . . Slashing 4647 | . . . . . . . . 658 . . . 76 1324 . . . . 1771 . 55 763 . . . . . . . . . . . . Piercing 7392 | . . . . . . . . 2180 206 . . 475 1228 62 . . . 37 . . 563 255 115 . 209 224 . . . 476 394 893 75 Highest Corruption 12 | . . . . . . . . 2 . . . 2 3 5 5 5 1 2 2 4 5 10 10 12 . . 1 1 1 2 2 . . Average Corruption 3 | . . . . . . . . 1 . . . 1 1 4 5 5 1 1 2 2 4 7 5 4 . . 1 1 1 1 2 . . Corruption Purged 11 | . . . . . . . . 4 . . . . . . . . . . . . . . 7 . . . . . . . . . . Corruption Blocked 41 | . . . . . . . . . . . . . . . . . . . . . . . . . . . . . . . . 2 39 Effects 105 | . . . . . . . . 5 . . . 3 2 3 5 . 1 11 2 8 19 31 5 4 . . 2 2 . 2 . . . Message Errors 24 | . . . . . . . . 1 . . . . . . 2 . . 4 . 2 5 8 1 . . . . . . 1 . . . Matter Fused 22 | . . . . . . . . 1 . . . 1 . . 1 . . 2 . 4 3 6 1 1 . . 1 . . 1 . . . Heat Flow Errors 14 | . . . . . . . . . . . . . 1 1 . . 1 1 . 1 3 3 1 . . . 1 1 . . . . . Energy Discharges 16 | . . . . . . . . 2 . . . . 1 1 1 . . 1 . 1 3 3 1 1 . . . 1 . . . . . Parts Rejected 3 | . . . . . . . . . . . . . . . . . . 1 . . . 2 . . . . . . . . . . . Parts Fused 1 | . . . . . . . . . . . . . . . . . . . . . 1 . . . . . . . . . . . . Data Loss (minor) 9 | . . . . . . . . . . . . 1 . . . . . 2 . . 1 3 1 1 . . . . . . . . . Data Loss (major) 9 | . . . . . . . . . . . . 1 . . 1 . . . 2 . 2 2 . 1 . . . . . . . . . Misfires 2 | . . . . . . . . . . . . . . . . . . . . . . 2 . . . . . . . . . . . Alerts 4 | . . . . . . . . 1 . . . . . 1 . . . . . . 1 1 . . . . . . . . . . . Weapon Failures 1 | . . . . . . . . . . . . . . . . . . . . . . 1 . . . . . . . . . . . Overload Shots . | . . . . . . . . . . . . . . . . . . . . . . . . . . . . . . . . . . Overflow Damage 1060 | . . . . . . . . 343 . . . 48 146 . . . . 142 . . 6 64 37 36 . 69 . . . 131 . 11 27 Projectiles 27 | . . . . . . . . . . . . . . . . . . . . . . . . . . . . . . . . . 27 Explosions 100 | . . . . . . . . . . . . . . . . . . . . . . 64 . 36 . . . . . . . . . Melee 933 | . . . . . . . . 343 . . . 48 146 . . . . 142 . . 6 . 37 . . 69 . . . 131 . 11 . Knockbacks . | . . . . . . . . . . . . . . . . . . . . . . . . . . . . . . . . . . Impact . | . . . . . . . . . . . . . . . . . . . . . . . . . . . . . . . . . . Kinetic . | . . . . . . . . . . . . . . . . . . . . . . . . . . . . . . . . . . Secondary . | . . . . . . . . . . . . . . . . . . . . . . . . . . . . . . . . . . Self-Inflicted Damage 74 | . . . . . . . . . . . . . . . . . . . . . . . . 74 . . . . . . . . . Shots 1 | . . . . . . . . . . . . . . . . . . . . . . . . 1 . . . . . . . . . Rammed 1 | . . . . 1 . . . . . . . . . . . . . . . . . . . . . . . . . . . . . Targets Rammed 1 | . . . . 1 . . . . . . . . . . . . . . . . . . . . . . . . . . . . . Kicked . | . . . . . . . . . . . . . . . . . . . . . . . . . . . . . . . . . . Crushed . | . . . . . . . . . . . . . . . . . . . . . . . . . . . . . . . . . . Highest Temperature 437 | . . . 373 95 . 222 437 38 51 62 11 42 178 281 11 . 138 188 8 145 204 179 189 87 14 . 196 228 . 318 . 292 328 Average Temperature 47 | . . . 95 42 . 133 208 3 19 23 5 21 19 24 2 . 69 33 3 19 32 34 112 35 14 . 93 120 . 165 . 90 98 Received Heat Transfer 2143 | . . . 402 45 . 63 369 186 9 . . . 159 81 12 . . 54 . 45 102 160 27 . 39 . . . 39 9 9 153 180 Effects 12 | . . . 6 . . . 5 . . . . . . . . . . . . . . . . . . . . . . . . 1 . Shutdowns 3 | . . . 2 . . . 1 . . . . . . . . . . . . . . . . . . . . . . . . . . Energy Bleed 2 | . . . . . . . 1 . . . . . . . . . . . . . . . . . . . . . . . . 1 . Interference 6 | . . . 3 . . . 3 . . . . . . . . . . . . . . . . . . . . . . . . . . Matter Decay 1 | . . . 1 . . . . . . . . . . . . . . . . . . . . . . . . . . . . . . Siege Activations . | . . . . . . . . . . . . . . . . . . . . . . . . . . . . . . . . . . Robots Corrupted 2 | . . . . . . . . . . . . . . . . . . . . . . . . 1 . . . . . . . . 1 Combat Hostiles 1 | . . . . . . . . . . . . . . . . . . . . . . . . 1 . . . . . . . . . Parts Fried 6 | . . . . . . . . . . . . . . . . . . . . . . . . 2 . . . . . . . . 4 Impact Corruptions . | . . . . . . . . . . . . . . . . . . . . . . . . . . . . . . . . . . Robots Melted . | . . . . . . . . . . . . . . . . . . . . . . . . . . . . . . . . . . Combat Hostiles . | . . . . . . . . . . . . . . . . . . . . . . . . . . . . . . . . . . Parts Melted 3 | . . . 2 . . . . . . . . . . . . . . . . . . 1 . . . . . . . . . . . Heat Transferred 2912 | . . . 1950 296 . 74 592 . . . . . . . . . . . . . . . . . . . . . . . . . . Parts Sabotaged . | . . . . . . . . . . . . . . . . . . . . . . . . . . . . . . . . . . Parts Stolen . | . . . . . . . . . . . . . . . . . . . . . . . . . . . . . . . . . . Parts Stripped . | . . . . . . . . . . . . . . . . . . . . . . . . . . . . . . . . . . Power Chain Reactions 2 | . . . 1 . . . . . . . . . 1 . . . . . . . . . . . . . . . . . . . . Alert | -11 -10 -10 -9 -9 -9 -8 -8 -7 -7 -7 -7 -6 -6 -6 -6 -6 -5 -5 -5 -5 -5 -5 -5 -5 -4 -4 -4 -4 -3 -3 -2 -1 -1 ------- Run | Yrd Mat Min Mat Min Exi Min Mat Fac Low Low Dat Pro Fac Low Low Zio Pro Fac Was Fac Ext Cet Arc Hub Fac Upp Upp Zhi Pro Res Res Acc Com Peak Influence 1317 | . 65 25 358 246 . 50 317 626 . . . . 456 . . . . 277 96 922 897 980 446 884 638 . . . . 252 229 1317 975 Initial 730 | . . 25 9 61 . . 19 38 . . . . 97 . . . . . 96 53 441 501 371 156 406 . . . . 101 . 136 730 Average 319 | . 19 25 165 137 . 47 104 207 . . . . 242 . . . . 85 96 632 551 791 381 473 500 . . . . 156 125 850 858 Maximum Alert Level 4 | . . . 1 1 . . 1 2 . . . . 2 . . . . 1 . 3 3 3 2 3 2 . . . . 1 1 4 3 Low Security (%) 47 | 100 100 100 69 70 . 100 84 50 . . . . 40 . . . . 93 100 2 . . . 24 1 . . . . 82 89 1 . Level 1 23 | . . . 30 29 . . 15 36 . . . . 53 . . . . 6 . 20 11 . 86 29 . . . . . 17 10 5 . Level 2 15 | . . . . . . . . 13 . . . . 6 . . . . . . 20 76 38 13 . 98 . . . . . . 20 3 Level 3 13 | . . . . . . . . . . . . . . . . . . . . 55 11 61 . 45 . . . . . . . 45 96 Level 4 . | . . . . . . . . . . . . . . . . . . . . . . . . . . . . . . . . 27 . Level 5 . | . . . . . . . . . . . . . . . . . . . . . . . . . . . . . . . . . . High Security . | . . . . . . . . . . . . . . . . . . . . . . . . . . . . . . . . . . Max Security . | . . . . . . . . . . . . . . . . . . . . . . . . . . . . . . . . . . Squads Dispatched 73 | . . . 3 . . . 2 15 . . . . 16 . . . . 8 . 4 2 . . 2 1 . . . 1 3 4 9 3 Investigation 39 | . . . 1 . . . 1 10 . . . . 10 . . . . 6 . 2 . . . 1 . . . . . 1 4 3 . Extermination 5 | . . . . . . . . 2 . . . . 1 . . . . 1 . . . . . . . . . . . 1 . . . Reinforcement 20 | . . . 2 . . . 1 3 . . . . 4 . . . . 1 . 1 . . . 1 1 . . . . . . 3 3 Assault 7 | . . . . . . . . . . . . . 1 . . . . . . 1 2 . . . . . . . 1 . . 2 . Garrison 2 | . . . . . . . . . . . . . . . . . . . . . . . . . . . . . . 1 . 1 . Intercept . | . . . . . . . . . . . . . . . . . . . . . . . . . . . . . . . . . . Searches Triggered 1 | . . . . . . . . 1 . . . . . . . . . . . . . . . . . . . . . . . . . Construction Impeded . | . . . . . . . . . . . . . . . . . . . . . . . . . . . . . . . . . . Haulers Reinforced 4 | . . . . . . . . 1 . . . . 2 . . . . 1 . . . . . . . . . . . . . . . Active Scanning Responses . | . . . . . . . . . . . . . . . . . . . . . . . . . . . . . . . . . . Cargo Convoy Interrupts . | . . . . . . . . . . . . . . . . . . . . . . . . . . . . . . . . . . Stealth | -11 -10 -10 -9 -9 -9 -8 -8 -7 -7 -7 -7 -6 -6 -6 -6 -6 -5 -5 -5 -5 -5 -5 -5 -5 -4 -4 -4 -4 -3 -3 -2 -1 -1 --------- Run | Yrd Mat Min Mat Min Exi Min Mat Fac Low Low Dat Pro Fac Low Low Zio Pro Fac Was Fac Ext Cet Arc Hub Fac Upp Upp Zhi Pro Res Res Acc Com Distress Signals 27 | . . . 3 . . . 1 3 . . . . 1 . . . . 2 . 4 2 2 . . 1 . . . . 1 . 2 5 Communications Jammed 3 | . . . . . . . . 3 . . . . . . . . . . . . . . . . . . . . . . . . . Distress Signals 3 | . . . . . . . . 3 . . . . . . . . . . . . . . . . . . . . . . . . . Times Spotted 499 | . 3 . 34 8 . 3 17 58 15 4 4 9 38 14 13 . 1 40 1 22 38 30 5 16 12 2 7 . 17 14 4 53 17 Peak Tracking Total 23 | . 3 . 10 3 . 3 5 7 9 4 4 3 8 7 8 . 1 10 1 10 10 7 4 13 6 4 7 . 12 6 1 23 8 Tactical Retreats 95 | . 1 . 3 . . . . 17 4 2 . 1 13 5 4 . . 7 . 4 5 . . 1 2 1 2 . 4 4 . 10 5 Traps | -11 -10 -10 -9 -9 -9 -8 -8 -7 -7 -7 -7 -6 -6 -6 -6 -6 -5 -5 -5 -5 -5 -5 -5 -5 -4 -4 -4 -4 -3 -3 -2 -1 -1 ------- Run | Yrd Mat Min Mat Min Exi Min Mat Fac Low Low Dat Pro Fac Low Low Zio Pro Fac Was Fac Ext Cet Arc Hub Fac Upp Upp Zhi Pro Res Res Acc Com Traps Triggered 27 | . . . 1 . . . 5 4 . . . . 5 . . . . 2 . 3 2 . . 2 1 . . . . . 1 1 . Indirectly 1 | . . . . . . . . . . . . . . . . . . . . . . . . 1 . . . . . . . . . Trap Hack Attempts 20 | . . . . . . . . . . . . . . . . . . . . . 20 . . . . . . . . . . . . Triggered . | . . . . . . . . . . . . . . . . . . . . . . . . . . . . . . . . . . Disarmed 1 | . . . . . . . . . . . . . . . . . . . . . 1 . . . . . . . . . . . . Reprogrammed 6 | . . . . . . . . . . . . . . . . . . . . . 5 . . . 1 . . . . . . . . Reused . | . . . . . . . . . . . . . . . . . . . . . . . . . . . . . . . . . . Traps Extracted . | . . . . . . . . . . . . . . . . . . . . . . . . . . . . . . . . . . Installed . | . . . . . . . . . . . . . . . . . . . . . . . . . . . . . . . . . . Triggered 4 | . . . . . . . . . 1 . . . . 1 2 . . . . . . . . . . . . . . . . . . Objects Rigged 2 | . . . . . . . . . . . . . . . . . . . . . . . . 2 . . . . . . . . . Exploded 1 | . . . . . . . . . . . . . . . . . . . . . . . . 1 . . . . . . . . . Machines | -11 -10 -10 -9 -9 -9 -8 -8 -7 -7 -7 -7 -6 -6 -6 -6 -6 -5 -5 -5 -5 -5 -5 -5 -5 -4 -4 -4 -4 -3 -3 -2 -1 -1 ---------- Run | Yrd Mat Min Mat Min Exi Min Mat Fac Low Low Dat Pro Fac Low Low Zio Pro Fac Was Fac Ext Cet Arc Hub Fac Upp Upp Zhi Pro Res Res Acc Com Machines Disabled 40 | . . . . . . . . 1 1 . 1 . 1 . . . . . . 5 4 4 . 18 1 1 . . . . . 2 1 Max in Single Turn 15 | . . . . . . . . 1 1 . 1 . 1 . . . . . . . 1 2 . 15 1 1 . . . . . 1 1 Garrison Access 16 | . . . . . . . . 4 . . . . 3 . . . . 2 . . . . . . 2 . . . . 2 . 3 . Network Hub 2 | . . . . . . . . . . . . . . . . . . . . . . . . 2 . . . . . . . . . Machines Repaired . | . . . . . . . . . . . . . . . . . . . . . . . . . . . . . . . . . . Machines Dismantled . | . . . . . . . . . . . . . . . . . . . . . . . . . . . . . . . . . . Machines Sabotaged 1 | . . . . . . . . . . . . . . . . . . . . . . . . 1 . . . . . . . . . Overloaded Fab Kills 2 | . . . . . . . . . . . . . 2 . . . . . . . . . . . . . . . . . . . . Hacking | -11 -10 -10 -9 -9 -9 -8 -8 -7 -7 -7 -7 -6 -6 -6 -6 -6 -5 -5 -5 -5 -5 -5 -5 -5 -4 -4 -4 -4 -3 -3 -2 -1 -1 --------- Run | Yrd Mat Min Mat Min Exi Min Mat Fac Low Low Dat Pro Fac Low Low Zio Pro Fac Was Fac Ext Cet Arc Hub Fac Upp Upp Zhi Pro Res Res Acc Com Machines Accessed 172 | . 1 1 2 . 2 . 2 30 1 . 4 1 29 . 1 . . 20 . 12 7 3 . 4 11 4 . 4 . 10 6 12 5 Terminals 92 | . . 1 2 . . . 2 16 . . . 1 15 . . . . 10 . 9 7 3 . 4 6 . . . . 4 2 5 5 Fabricators 17 | . . . . . . . . 5 . . . . 5 . . . . 5 . . . . . . . . . . . 1 . 1 . Repair Stations 11 | . . . . . . . . 2 . . . . 3 . . . . 3 . 1 . . . . 1 . . . . . . 1 . Recycling Units 9 | . 1 . . . . . . . . . . . . . . . . . . 1 . . . . 2 . . . . 2 1 2 . Scanalyzers 11 | . . . . . . . . 3 . . . . 3 . . . . . . 1 . . . . . . . . . 1 3 . . Garrison Access 16 | . . . . . . . . 4 . . . . 3 . . . . 2 . . . . . . 2 . . . . 2 . 3 . Total Hacks 782 | . 2 4 5 . 5 . 7 102 1 . 32 5 140 . 1 . . 73 . 72 23 18 . 19 81 8 . 17 . 55 47 48 17 Successful 468 | . 2 1 3 . 5 . 1 59 1 . 32 5 100 . 1 . . 49 . 39 16 7 . 7 38 8 . 17 . 35 25 13 4 Failed 313 | . . 3 2 . . . 6 43 . . . . 39 . . . . 24 . 33 7 11 . 12 43 . . . . 20 22 35 13 Catastrophic 51 | . . 1 1 . . . 3 3 . . . . 1 . . . . 2 . 3 2 4 . 5 9 . . . . 4 4 7 2 Database Lockouts 1 | . . . . . . . . . . . . . 1 . . . . . . . . . . . . . . . . . . . . Manual 265 | . 2 2 2 . 1 . 4 44 . . . . 53 . . . . 35 . 15 15 3 . 14 32 . . . . 22 12 3 6 Terminals 433 | . . 4 5 . . . 7 62 . . . 5 82 . . . . 51 . 45 23 18 . 19 52 . . . . 24 9 10 17 Fabricators 62 | . . . . . . . . 18 . . . . 18 . . . . 11 . . . . . . . . . . . 6 . 9 . Repair Stations 40 | . . . . . . . . 5 . . . . 19 . . . . 7 . 2 . . . . 2 . . . . . . 5 . Recycling Units 58 | . 2 . . . . . . . . . . . . . . . . . . 4 . . . . 25 . . . . 13 4 10 . Scanalyzers 87 | . . . . . . . . 10 . . . . 14 . . . . . . 21 . . . . . . . . . 8 34 . . Garrison Access 38 | . . . . . . . . 7 . . . . 7 . . . . 4 . . . . . . 2 . . . . 4 . 14 . Terminal Hacks 231 | . . 1 3 . 5 . 1 18 1 . 32 5 47 . 1 . . 23 . 10 12 7 . 1 18 8 . 17 . 10 2 5 4 Record 38 | . . . . . 4 . . . . . 11 5 . . . . . . . . . 6 . . . 6 . 5 . . . . 1 Part Schematic 33 | . . . . . . . . . . . 12 . 12 . . . . 3 . . . . . . 1 . . 4 . 1 . . . Robot Schematic 8 | . . . . . . . . . . . 6 . 1 . . . . . . 1 . . . . . . . . . . . . . Robot Analysis 17 | . . . . . . . . 1 . . . . 5 . . . . 4 . 2 . . . . . . . 4 . . . 1 . Prototype ID Bank 40 | . . . . . . . . 5 . . 3 . 20 . . . . 4 . . 1 . . . 3 . . 4 . . . . . Open Door 14 | . . . . . . . . . 1 . . . . . 1 . . . . 1 3 1 . . . 2 . . . . . 4 1 Open DSF 2 | . . . . . . . . . . . . . . . . . . 1 . . . . . . . . . . . 1 . . . Level Access Points 3 | . . . . . . . . . . . . . . . . . . . . . . . . . 1 . . . . 1 1 . . Branch Access Points 5 | . . . . . . . . 1 . . . . 1 . . . . 1 . 1 . . . . 1 . . . . . . . . Emergency Access Points 2 | . . . . . . . . . . . . . . . . . . . . . . . . . 1 . . . . 1 . . . Machine Index 2 | . . . . . . . . . . . . . . . . . . 1 . . . . . . 1 . . . . . . . . Terminal Index 4 | . . . . . . . . 1 . . . . . . . . . . . . 1 . . . 1 . . . . . 1 . . Fabricator Index 1 | . . . . . . . . . . . . . . . . . . . . 1 . . . . . . . . . . . . . Alert Level 9 | . . . . . . . . 3 . . . . 2 . . . . 2 . . 1 . . 1 . . . . . . . . . Unreport Threat 22 | . . . 2 . . . 1 3 . . . . 3 . . . . 3 . 1 3 . . . 3 . . . . 3 . . . Locate Traps 7 | . . . . . . . . . . . . . 3 . . . . 1 . . 1 . . . 2 . . . . . . . . Reprogram Traps 2 | . . . . . . . . . . . . . . . . . . . . . . . . . 2 . . . . . . . . Dispatch Records 2 | . . 1 . . . . . . . . . . . . . . . . . . . . . . . . . . . 1 . . . Security Status 1 | . . . . . . . . . . . . . . . . . . . . 1 . . . . . . . . . . . . . Recall Investigation 6 | . . . . . . . . 2 . . . . . . . . . 3 . . . . . . . . . . . 1 . . . Recall Extermination 1 | . . . . . . . . 1 . . . . . . . . . . . . . . . . . . . . . . . . . Recall Reinforcements 1 | . . . . . . . . . . . . . . . . . . . . . 1 . . . . . . . . . . . . Hauler Manifests 2 | . . . . . . . . . . . . . . . . . . . . 1 . . . . 1 . . . . . . . . Registered Components 1 | . . . . . . . . . . . . . . . . . . . . . . . . . . . . . . 1 . . . Registered Prototypes 1 | . . . . . . . . . . . . . . . . . . . . . 1 . . . . . . . . . . . . Zone Layout 4 | . . . 1 . . . . 1 . . . . . . . . . . . 1 . . . . 1 . . . . . . . . Derelict Proto ID Bank 1 | . . . . . 1 . . . . . . . . . . . . . . . . . . . . . . . . . . . . Disengage Seal 2 | . . . . . . . . . . . . . . . . . . . . . . . . . . . . . . . . . 2 Fabricator Hacks 34 | . . . . . . . . 11 . . . . 8 . . . . 10 . . . . . . . . . . . 3 . 2 . Network Status 1 | . . . . . . . . . . . . . 1 . . . . . . . . . . . . . . . . . . . . Load Schematic 16 | . . . . . . . . 5 . . . . 4 . . . . 5 . . . . . . . . . . . 1 . 1 . Build 17 | . . . . . . . . 6 . . . . 3 . . . . 5 . . . . . . . . . . . 2 . 1 . Repair Station Hacks 30 | . . . . . . . . 3 . . . . 14 . . . . 6 . 2 . . . . 2 . . . . . . 3 . Scan Component 17 | . . . . . . . . 2 . . . . 8 . . . . 3 . 1 . . . . 1 . . . . . . 2 . Repair 13 | . . . . . . . . 1 . . . . 6 . . . . 3 . 1 . . . . 1 . . . . . . 1 . Recycling Unit Hacks 10 | . . . . . . . . . . . . . . . . . . . . 1 . . . . 4 . . . . 4 1 . . Report Inventory 1 | . . . . . . . . . . . . . . . . . . . . . . . . . . . . . . 1 . . . Retrieve Matter 2 | . . . . . . . . . . . . . . . . . . . . . . . . . 1 . . . . 1 . . . Retrieve Components 7 | . . . . . . . . . . . . . . . . . . . . 1 . . . . 3 . . . . 2 1 . . Scanalyzer 62 | . . . . . . . . 8 . . . . 11 . . . . . . 19 . . . . . . . . . 8 16 . . Insert Component 31 | . . . . . . . . 4 . . . . 6 . . . . . . 8 . . . . . . . . . 4 9 . . Analyze 31 | . . . . . . . . 4 . . . . 5 . . . . . . 11 . . . . . . . . . 4 7 . . Garrison Access Hacks 13 | . . . . . . . . 4 . . . . 2 . . . . 2 . . . . . . 2 . . . . 2 . 1 . Seal Access 13 | . . . . . . . . 4 . . . . 2 . . . . 2 . . . . . . 2 . . . . 2 . 1 . Unauthorized Hacks 88 | . 2 . . . . . . 15 . . . . 18 . . . . 8 . 7 4 . . 6 12 . . . . 8 6 2 . Terminals 58 | . . . . . . . . 12 . . . . 13 . . . . 8 . 6 4 . . 6 6 . . . . 2 1 . . Assimilate 3 | . . . . . . . . 2 . . . . . . . . . 1 . . . . . . . . . . . . . . . Botnet 48 | . . . . . . . . 10 . . . . 13 . . . . 6 . 6 3 . . 3 4 . . . . 2 1 . . Detonate 2 | . . . . . . . . . . . . . . . . . . . . . . . . 2 . . . . . . . . . Disrupt 4 | . . . . . . . . . . . . . . . . . . 1 . . 1 . . . 2 . . . . . . . . Sabotage 1 | . . . . . . . . . . . . . . . . . . . . . . . . 1 . . . . . . . . . Fabricators 6 | . . . . . . . . 2 . . . . 4 . . . . . . . . . . . . . . . . . . . . Report 2 | . . . . . . . . 1 . . . . 1 . . . . . . . . . . . . . . . . . . . . Liberate 1 | . . . . . . . . . . . . . 1 . . . . . . . . . . . . . . . . . . . . Fabnet 2 | . . . . . . . . 1 . . . . 1 . . . . . . . . . . . . . . . . . . . . Overload 1 | . . . . . . . . . . . . . 1 . . . . . . . . . . . . . . . . . . . . Repair Stations . | . . . . . . . . . . . . . . . . . . . . . . . . . . . . . . . . . . Recycling Units 19 | . 2 . . . . . . . . . . . . . . . . . . 1 . . . . 6 . . . . 6 2 2 . Monitor 5 | . 1 . . . . . . . . . . . . . . . . . . . . . . . 2 . . . . 2 . . . Reject 7 | . 1 . . . . . . . . . . . . . . . . . . . . . . . 2 . . . . 2 1 1 . Mask 7 | . . . . . . . . . . . . . . . . . . . . 1 . . . . 2 . . . . 2 1 1 . Scanalyzers 5 | . . . . . . . . 1 . . . . 1 . . . . . . . . . . . . . . . . . 3 . . Extract 5 | . . . . . . . . 1 . . . . 1 . . . . . . . . . . . . . . . . . 3 . . Garrison Access . | . . . . . . . . . . . . . . . . . . . . . . . . . . . . . . . . . . Data Cores Recovered 3 | . . . . . . . . . . . . . 1 . . . . . . 1 . . . . . . . . . 1 . . . Used 3 | . . . . . . . . . . . . . 1 . . . . . . 1 . . . . . . . . . 1 . . . Hacking Detections 121 | . 1 1 2 . . . 2 27 . . . . 26 . . . . 18 . 10 4 2 . 3 6 . . . . 7 2 7 3 Full Trace Events 29 | . . . . . . . . 9 . . . . 8 . . . . 6 . 1 . . . . . . . . . 1 1 3 . Feedback Events . | . . . . . . . . . . . . . . . . . . . . . . . . . . . . . . . . . . Feedback Blocked 1 | . . . . . . . . 1 . . . . . . . . . . . . . . . . . . . . . . . . . Robot Schematics Acquired 8 | . . . . . . . . . . . 6 . 1 . . . . . . 1 . . . . . . . . . . . . . Robots Built . | . . . . . . . . . . . . . . . . . . . . . . . . . . . . . . . . . . Authchips . | . . . . . . . . . . . . . . . . . . . . . . . . . . . . . . . . . . Time . | . . . . . . . . . . . . . . . . . . . . . . . . . . . . . . . . . . Total Robot Build Rating . | . . . . . . . . . . . . . . . . . . . . . . . . . . . . . . . . . . Part Schematics Acquired 63 | . . . . . . . . 6 . . 12 . 17 . . . . 3 . 7 . . . . 1 . . 4 . 3 10 . . Parts Built 19 | . . . . . . . . 7 . . . . 3 . . . . 5 . . . . . . . . . . . 3 . 1 . Authchips 1 | . . . . . . . . 1 . . . . . . . . . . . . . . . . . . . . . . . . . Time 1693 | . . . . . . . . 646 . . . . 312 . . . . 532 . . . . . . . . . . . 153 . 50 . Total Part Build Rating 108 | . . . . . . . . 38 . . . . 16 . . . . 25 . . . . . . . . . . . 24 . 5 . Parts Repaired 13 | . . . . . . . . 1 . . . . 6 . . . . 3 . 1 . . . . 1 . . . . . . 1 . Time 524 | . . . . . . . . 19 . . . . 216 . . . . 213 . 25 . . . . 31 . . . . . . 20 . Parts Recycled . | . . . . . . . . . . . . . . . . . . . . . . . . . . . . . . . . . . Recycled Matter . | . . . . . . . . . . . . . . . . . . . . . . . . . . . . . . . . . . Retrieved Matter . | . . . . . . . . . . . . . . . . . . . . . . . . . . . . . . . . . . Retrieved Components 11 | . . . . . . . . . . . . . . . . . . . . . . . . . 5 . . . . 3 3 . . Parts Scanalyzed 24 | . . . . . . . . 4 . . . . 5 . . . . . . 7 . . . . . . . . . 2 6 . . Part Schematics Acquired 23 | . . . . . . . . 4 . . . . 4 . . . . . . 7 . . . . . . . . . 2 6 . . Parts Damaged 3 | . . . . . . . . 1 . . . . . . . . . . . 1 . . . . . . . . . . 1 . . Bothacking | -11 -10 -10 -9 -9 -9 -8 -8 -7 -7 -7 -7 -6 -6 -6 -6 -6 -5 -5 -5 -5 -5 -5 -5 -5 -4 -4 -4 -4 -3 -3 -2 -1 -1 ------------ Run | Yrd Mat Min Mat Min Exi Min Mat Fac Low Low Dat Pro Fac Low Low Zio Pro Fac Was Fac Ext Cet Arc Hub Fac Upp Upp Zhi Pro Res Res Acc Com Used RIF Installer . | . . . . . . . . . . . . . . . . . . . . . . . . . . . . . . . . . . Robots Hacked 10 | . . . . . . . . . . . . . . 1 1 . . 1 . 2 4 1 . . . . . . . . . . . Non-combat . | . . . . . . . . . . . . . . . . . . . . . . . . . . . . . . . . . . Combat 10 | . . . . . . . . . . . . . . 1 1 . . 1 . 2 4 1 . . . . . . . . . . . Robot Hacks Applied . | . . . . . . . . . . . . . . . . . . . . . . . . . . . . . . . . . . Relay Couplers Released 4 | . . . . . . . . . . . . . 1 . . . . . . . . . . . . . . . . . . 3 . Machine Destruction 4 | . . . . . . . . . . . . . 1 . . . . . . . . . . . . . . . . . . 3 . Fabnet Peak Effective % 4 | . . . . . . . . . . . . 3 3 3 3 3 4 4 4 4 4 4 4 4 1 1 1 1 . . . . . Autooverrided 10 | . . . . . . . . . . . . . . 1 1 . . 1 . 2 4 1 . . . . . . . . . . . Robots Rewired 16 | . . . . . . . . . . . . . 1 . . . . . . . 15 . . . . . . . . . . . . Allies Hacked . | . . . . . . . . . . . . . . . . . . . . . . . . . . . . . . . . . . Hacks Repelled . | . . . . . . . . . . . . . . . . . . . . . . . . . . . . . . . . . . Allies | -11 -10 -10 -9 -9 -9 -8 -8 -7 -7 -7 -7 -6 -6 -6 -6 -6 -5 -5 -5 -5 -5 -5 -5 -5 -4 -4 -4 -4 -3 -3 -2 -1 -1 -------- Run | Yrd Mat Min Mat Min Exi Min Mat Fac Low Low Dat Pro Fac Low Low Zio Pro Fac Was Fac Ext Cet Arc Hub Fac Upp Upp Zhi Pro Res Res Acc Com Total Allies 63 | . . . . . . . . 2 . . . . 1 1 1 . . 2 20 2 31 3 . . . . . . . . . . . Largest Group 20 | . . . . . . . . 2 . . . . 1 . 1 . . 1 20 20 12 7 . . . . . . . . . . . Highest-Rated Group 690 | . . . . . . . . 52 . . . . 29 . 12 . . 10 690 650 389 343 . . . . . . . . . . . Highest-Rated Ally 159 | . . . . . . . . 26 . . . . 29 . 12 . . 10 50 50 159 159 . . . . . . . . . . . Total Orders 9 | . . . . . . . . 2 . . . . . . . . . 1 . . . . . . . 3 . . . 3 . . . STAY 3 | . . . . . . . . 2 . . . . . . . . . 1 . . . . . . . . . . . . . . . RETURN 6 | . . . . . . . . . . . . . . . . . . . . . . . . . . 3 . . . 3 . . . Ally Attacks 404 | . . . . . . . . . . . . . 6 1 2 . . 1 10 158 132 94 . . . . . . . . . . . Total Damage 9431 | . . . . . . . . . . . . . 76 20 32 . . . 220 3552 2718 2813 . . . . . . . . . . . Kills 74 | . . . . . . . . . . . . . . . . . . . . 30 31 13 . . . . . . . . . . . Allies Corrupted 1 | . . . . . . . . . . . . . . . . . . . . . 1 . . . . . . . . . . . . Allies Melted 2 | . . . . . . . . . . . . . . . . . . . . . 1 . . . . 1 . . . . . . . Intel | -11 -10 -10 -9 -9 -9 -8 -8 -7 -7 -7 -7 -6 -6 -6 -6 -6 -5 -5 -5 -5 -5 -5 -5 -5 -4 -4 -4 -4 -3 -3 -2 -1 -1 ------- Run | Yrd Mat Min Mat Min Exi Min Mat Fac Low Low Dat Pro Fac Low Low Zio Pro Fac Was Fac Ext Cet Arc Hub Fac Upp Upp Zhi Pro Res Res Acc Com Robot Analysis Total 17 | . . . . . . . . 1 . . . . 5 . . . . 4 . 2 . . . . . . . 4 . . . 1 . Derelict Logs Recovered 16 | . . . . 1 . . . . 1 1 . 2 . 3 2 2 1 . . . . . . . . 2 1 . . . . . . Drone Launches 6 | . . . . . . . . . . . . . . . . . . . . . . . . . . 3 . . . 3 . . . Drone Recoveries 6 | . . . . . . . . . . . . . . . . . . . . . . . . . . 3 . . . 3 . . . Exploration | -11 -10 -10 -9 -9 -9 -8 -8 -7 -7 -7 -7 -6 -6 -6 -6 -6 -5 -5 -5 -5 -5 -5 -5 -5 -4 -4 -4 -4 -3 -3 -2 -1 -1 ------------- Run | Yrd Mat Min Mat Min Exi Min Mat Fac Low Low Dat Pro Fac Low Low Zio Pro Fac Was Fac Ext Cet Arc Hub Fac Upp Upp Zhi Pro Res Res Acc Com Turns Passed 15914 | 72 170 173 980 690 454 129 613 2386 184 184 80 288 1645 193 151 254 153 1168 122 379 764 934 176 121 405 1003 93 109 153 526 157 452 553 Spaces Moved 26719 | 40 96 109 402 391 278 73 283 5062 625 686 143 837 3308 705 614 956 587 2395 190 1296 794 560 73 376 988 854 215 145 430 896 478 1270 564 Core 17 | 2 . . . . . . 2 . . . . . . . . . . . . . . . . . . . . . . . . . 13 Treads 1561 | 38 96 109 402 391 278 73 169 . . . . . . . . . . . . . . 5 . . . . . . . . . . . Legs 549 | . . . . . . . 104 . . . . . . . . . . . . . . 445 . . . . . . . . . . . Wheels 8 | . . . . . . . 8 . . . . . . . . . . . . . . . . . . . . . . . . . . Hover 224 | . . . . . . . . . . . . . . . . . . . . . . . . . . . . 66 100 58 . . . Flight 24360 | . . . . . . . . 5062 625 686 143 837 3308 705 614 956 587 2395 190 1296 794 110 73 376 988 854 215 79 330 838 478 1270 551 Fastest Speed 6 | 50 160 160 160 160 160 160 100 23 23 23 23 23 23 23 23 26 26 20 20 19 6 18 18 19 27 27 27 29 28 26 26 20 20 Average Speed 35 | 154 160 160 177 160 160 160 151 24 23 23 23 24 24 23 23 26 26 23 20 20 22 111 20 21 32 27 31 35 34 30 26 22 25 Slowest Speed 600 | 160 160 160 240 160 160 160 600 32 23 23 23 29 98 23 26 26 26 99 20 21 24 400 91 34 37 27 37 100 42 92 26 24 99 Overloaded Moves 151 | . . . . . . . . . . . . . . . 1 . . . . . 21 . 19 . . . . . 27 . . . 83 Propulsion Burnouts 1 | . . . . . . . . . . . . . . . . . . . . . 1 . . . . . . . . . . . . Robots Hopped 126 | . . . . . . . . 24 . . . . 18 . 2 1 5 22 2 4 4 . 3 . 2 . 3 . 3 2 1 23 7 Cave-ins Triggered . | . . . . . . . . . . . . . . . . . . . . . . . . . . . . . . . . . . Exploration Rate (%) 56 | 3 23 33 38 85 60 24 23 86 73 79 85 91 77 88 83 86 69 50 84 34 74 90 65 52 23 77 47 60 64 23 18 38 21 Regions Visited 33 Branch Regions 21 Pre-discovered Areas 14 | . . . . . 1 . . . 1 1 1 . . 2 1 1 1 . . . . . . . . 1 1 3 . . . . . Known Exits Taken 10 | . . . . . . . 1 1 . . . . 1 . . . 1 . . 1 . . . 1 1 . . . 1 1 1 . . Unknown Exits Taken 21 | 1 1 1 1 1 1 1 . . 1 1 1 1 . 1 1 1 . . . . 1 1 1 . . 1 1 1 . . . 1 . Scrap Searched 24 | . . . . 2 . . . . 3 1 . 5 . 2 1 1 2 . . . . . . . . 2 4 . 1 . . . . Spaces Dug 147 | . . . . . . . . 18 . 8 . . 13 3 . . . 61 . 2 15 . . 3 1 2 . . . 7 1 12 1 Terrain Destroyed 424 | . . . 5 . . . 14 18 . 8 . . 13 3 . . . 61 . 2 15 97 . 164 1 2 . . . 7 1 12 1 Melee 111 | . . . . . . . . 18 . 8 . . 13 3 . . . 25 . 2 15 . . 3 1 2 . . . 7 1 12 1 Projectile 18 | . . . . . . . 14 . . . . . . . . . . . . . . 4 . . . . . . . . . . . AOE 295 | . . . 5 . . . . . . . . . . . . . . 36 . . . 93 . 161 . . . . . . . . . Terrain Rammed . | . . . . . . . . . . . . . . . . . . . . . . . . . . . . . . . . . . Walls Destroyed . | . . . . . . . . . . . . . . . . . . . . . . . . . . . . . . . . . . Machines Disabled . | . . . . . . . . . . . . . . . . . . . . . . . . . . . . . . . . . . Actions | -11 -10 -10 -9 -9 -9 -8 -8 -7 -7 -7 -7 -6 -6 -6 -6 -6 -5 -5 -5 -5 -5 -5 -5 -5 -4 -4 -4 -4 -3 -3 -2 -1 -1 --------- Run | Yrd Mat Min Mat Min Exi Min Mat Fac Low Low Dat Pro Fac Low Low Zio Pro Fac Was Fac Ext Cet Arc Hub Fac Upp Upp Zhi Pro Res Res Acc Com Total 31952 | 47 105 108 522 427 289 76 396 6029 655 702 161 894 4025 728 615 961 581 2848 270 1399 1272 768 226 401 1049 1613 235 201 432 1114 496 1358 949 Wait 3859 | . 1 . 14 4 . . 11 743 22 7 . 32 590 11 . 1 . 353 77 60 286 80 150 7 33 746 24 39 6 168 3 31 360 Move 26451 | 39 95 108 401 390 277 72 282 5015 624 685 142 836 3271 704 609 953 577 2354 185 1287 785 559 66 375 983 853 208 144 424 891 475 1230 552 Hop 109 | . . . . . . . . 22 . . . . 18 . 2 1 4 19 2 4 4 . 3 . 2 . 3 . 2 2 . 16 5 Pick Up 134 | 2 4 . 9 4 5 . 8 16 . . . 3 4 3 . 1 . 7 2 12 8 11 . 3 1 1 . 3 . 10 2 15 . Fast Attach 199 | 6 1 . 7 4 . . 25 34 . 1 . 1 28 1 . 2 . 13 1 2 2 13 3 2 15 3 . 6 . 9 3 10 7 Attach 91 | . . . 5 . . . 3 10 . . . . 3 1 . . . 12 . 4 8 17 . 4 1 . . . . 3 1 13 6 Detach 33 | . . . . . . . . 4 . . . . 2 . . . . 10 1 3 1 4 . . 2 . . . . 4 . . 2 Swap 53 | . . . 5 2 2 . 2 10 2 . 1 3 7 . . . . 2 2 5 . 3 . 1 . . . 2 . 2 . 2 . Drop 195 | . . . 13 9 5 . 16 41 1 1 . 4 19 3 1 3 . 9 . 11 2 15 2 2 4 4 . 7 . 6 3 8 6 Fire 218 | . 4 . 68 13 . 4 49 13 . . . . 1 . 3 . . 2 . . . 58 . . . . . . . . . . 3 Melee 449 | . . . . . . . . 85 6 8 18 15 80 5 . . . 67 . 6 62 8 2 7 8 6 . . . 19 8 31 8 Ram . | . . . . . . . . . . . . . . . . . . . . . . . . . . . . . . . . . . Kick . | . . . . . . . . . . . . . . . . . . . . . . . . . . . . . . . . . . Crush 1 | . . . . 1 . . . . . . . . . . . . . . . . . . . . . . . . . . . . . Escape Stasis 80 | . . . . . . . . 36 . . . . . . . . . . . 5 36 . . . . . . . . . 1 2 . Rewire 60 | . . . . . . . . . . . . . 2 . . . . . . . 58 . . . . . . . . . . . . Trap 20 | . . . . . . . . . . . . . . . . . . . . . 20 . . . . . . . . . . . . Miscellaneous . | . . . . . . . . . . . . . . . . . . . . . . . . . . . . . . . . . . Route ------- -11/Scrapyard -10/Materials -10/Mines -9/Materials (discovered 2 exits: Mat / [*Min]) -9/Mines (discovered 3 exits: *Mat x2 / *Exi) -9/Exiles -8/Mines -8/Materials (discovered 2 exits: *Fac x2) -7/Factory (discovered 8 exits: *Fac x4 / *Sto x2 / *Low x2) -7/Lower Caves -7/Lower Caves (discovered 2 exits: *Fac / *Dat) -7/Data Miner -6/Proximity Caves -6/Factory (discovered 6 exits: *Fac x4 / *Low x2) -6/Lower Caves -6/Lower Caves (discovered 2 exits: *Fac / [*Zio]) -6/Zion -5/Proximity Caves -5/Factory (discovered 6 exits: *Fac x2 / Upp x2 / *Ext x2) -5/Waste -5/Factory (discovered 6 exits: *Fac x2 / *Upp x2 / *Ext x2) -5/Extension (discovered 2 exits: *Fac / *Cet) -5/Cetus (discovered 2 exits: *Fac / *Arc) -5/Archives -5/Hub_04(d) -4/Factory (discovered 6 exits: Res x4 / *Upp x2) -4/Upper Caves -4/Upper Caves (discovered 2 exits: *Res / *Zhi) -4/Zhirov -3/Proximity Caves -3/Research (discovered 5 exits: *Res x3 / Arm / Tes) -2/Research (discovered 3 exits: *Acc x3) -1/Access (discovered 2 exits: *Sur / *Com) -1/Command History --------- Turn | Location | Event 13 | -11/Scrapyard | Discovered new exit (range 15) 73 | -11/Scrapyard | Entered Materials 209 | -10/Materials | Discovered new exit (range 15) 243 | -10/Materials | Entered Mines 306 | -10/Mines | Build established: Mutant 394 | -10/Mines | Discovered new exit (range 15) 416 | -10/Mines | Entered Materials 416 | -9/Materials | Evolved 2 slots: Weapon x2 788 | -9/Materials | Build established: Gunner 845 | -9/Materials | Discovered new exit (range 12) 1381 | -9/Materials | Discovered new exit (range 7) 1396 | -9/Materials | Entered Mines 1428 | -9/Mines | Met a Derelict bent on vengeance 1480 | -9/Mines | Discovered new exit (range 3) 1575 | -9/Mines | Received a Rocket Launcher from a helpful Derelict 1638 | -9/Mines | Discovered new exit (range 9) 1867 | -9/Mines | Joined a pair of Derelicts in attacking an 0b10 outpost 1874 | -9/Mines | Learned location of 1 exit from Materials 2080 | -9/Mines | Deemed a non-threat by the Exiles lab entrance 2080 | -9/Mines | Discovered new exit (range 5) 2086 | -9/Mines | Entered Exiles 2125 | -9/Exiles | Met 8R-AWN 2152 | -9/Exiles | Met EX-HEX 2191 | -9/Exiles | Build established: Tank 2197 | -9/Exiles | Met EX-BIN 2219 | -9/Exiles | Aligned with FarCom system 2221 | -9/Exiles | Given EX-Vault access code 2258 | -9/Exiles | Opened EX-Vault 2324 | -9/Exiles | Found YOLO Cannon 2356 | -9/Exiles | Warned to stay clear of 0b10 Research branches 2400 | -9/Exiles | Met EX-DEC 2408 | -9/Exiles | Learned location of Zion (-6) 2520 | -9/Exiles | Discovered new exit (range 14) 2540 | -9/Exiles | Left Exiles lab with YOLO Cannon 2540 | -9/Exiles | Entered Mines 2648 | -8/Mines | Discovered new exit (range 9) 2669 | -8/Mines | Entered Materials 2669 | -8/Materials | Evolved 2 slots: Propulsion x1, Utility x1 2670 | -8/Materials | Identified exit to Factory 2972 | -8/Materials | Build established: Scavenger-Skirmisher 2984 | -8/Materials | Discovered exit to Factory (range 4) 3106 | -8/Materials | Lost 4 parts (1p3n) 3282 | -8/Materials | Entered Factory 3282 | -7/Factory | Evolved 2 slots: Propulsion x2 3570 | -7/Factory | Build established: Scavenger-Sprinter 3628 | -7/Factory | Discovered new exit (range 15) 3687 | -7/Factory | Discovered new exit (range 11) 3723 | -7/Factory | Discovered new exit (range 5) 3887 | -7/Factory | Build established: Hacker-Sprinter 3941 | -7/Factory | Identified exit to Storage 3941 | -7/Factory | Identified exit to Lower Caves 4191 | -7/Factory | Fabricated System Restoration Module (x2) 4336 | -7/Factory | Discovered new exit (range 12) 4414 | -7/Factory | Fabricated Cld. Nuclear Pulse Thruster (x1) 4641 | -7/Factory | Fabricated Cld. Nuclear Pulse Thruster (x1) 4801 | -7/Factory | Fabricated Cld. Nuclear Pulse Thruster (x1) 4837 | -7/Factory | Repaired Surge Thruster 4945 | -7/Factory | Lost 3 parts (1p2u) 5169 | -7/Factory | Discovered new exit (range 4) 5282 | -7/Factory | Search patrols dispatched 5372 | -7/Factory | Fabricated Cld. Nuclear Pulse Thruster (x1) 5590 | -7/Factory | Fabricated Cld. Nuclear Pulse Thruster (x1) 5668 | -7/Factory | Entered Lower Caves 5669 | -7/Lower Caves | Learned location of Extension (-5) 5681 | -7/Lower Caves | Attacked by a delusional Derelict stockpiling parts 5796 | -7/Lower Caves | Attracted the attention of an 0b10 outpost 5796 | -7/Lower Caves | Encountered a Warlord checkpoint 5796 | -7/Lower Caves | Discovered new exit (range 8) 5852 | -7/Lower Caves | Entered another Lower Caves area 5870 | -7/Lower Caves | Encountered a Warlord checkpoint 5873 | -7/Lower Caves | Discovered new exit (range 15) 5885 | -7/Lower Caves | Spotted B-75 Beast 5947 | -7/Lower Caves | Discovered new exit (range 15) 6036 | -7/Lower Caves | Entered Data Miner 6036 | -7/Data Miner | Discovered new exit (range 6) 6041 | -7/Data Miner | Met Data Miner 6048 | -7/Data Miner | Learned location of Section 7 (-2) 6048 | -7/Data Miner | Acquired the access code to Warlord's prototype stash 6053 | -7/Data Miner | Received God Mode back door access code from Data Miner 6056 | -7/Data Miner | Data Conduit disabled 6116 | -7/Data Miner | Entered Proximity Caves 6233 | -6/Proximity Caves | Learned Factory interactive machine intel 6335 | -6/Proximity Caves | Discovered new exit (range 15) 6345 | -6/Proximity Caves | Attracted the attention of an 0b10 checkpoint 6378 | -6/Proximity Caves | Learned location of 1 exit from Proximity Caves 6378 | -6/Proximity Caves | Learned Extension trap positions 6404 | -6/Proximity Caves | Entered Factory 6404 | -6/Factory | Evolved 2 slots: Power x1, Utility x1 6405 | -6/Factory | Identified exit to Factory 6406 | -6/Factory | Loaded intel: 51 interactive machine locations 6570 | -6/Factory | Spotted B-75 Beast 6601 | -6/Factory | Discovered new exit (range 2) 6754 | -6/Factory | Fabricated Cld. Cesium-ion Thruster (x1) 6837 | -6/Factory | Identified exit to Lower Caves 7072 | -6/Factory | Fabricated Cld. Nuclear Pulse Thruster (x1) 7120 | -6/Factory | Lost 5 parts (2p2n1w) 7202 | -6/Factory | Central database locked down 7328 | -6/Factory | Repaired Cld. Cesium-ion Thruster 7373 | -6/Factory | Repaired Cld. Nuclear Pulse Thruster 7419 | -6/Factory | Repaired Cld. Nuclear Pulse Thruster 7442 | -6/Factory | Repaired Gauss Rifle 7822 | -6/Factory | Repaired Cld. Nuclear Pulse Thruster 7845 | -6/Factory | Repaired Spear 8022 | -6/Factory | Fabricated Cld. Cesium-ion Thruster (x1) 8049 | -6/Factory | Entered Lower Caves 8121 | -6/Lower Caves | Encountered a Warlord checkpoint 8158 | -6/Lower Caves | Attracted the attention of an 0b10 checkpoint 8196 | -6/Lower Caves | Discovered new exit (range 15) 8242 | -6/Lower Caves | Entered another Lower Caves area 8245 | -6/Lower Caves | Discovered exit to Factory (range 15) 8356 | -6/Lower Caves | Learned location of 1 exit from Factory 8358 | -6/Lower Caves | Spotted B-75 Beast 8369 | -6/Lower Caves | Encountered a Warlord checkpoint 8384 | -6/Lower Caves | Discovered new exit (range 11) 8393 | -6/Lower Caves | Entered Zion 8398 | -6/Zion | Found CR-A16's Pointy Stick 8409 | -6/Zion | System corruption cleaned by Quarantine Array 8487 | -6/Zion | Visited the Megawrench Repair Shop 8494 | -6/Zion | Learned location of 1 exit from Factory 8498 | -6/Zion | Learned location of 1 exit from Lower Caves 8570 | -6/Zion | Rebuked by Imprinter 8605 | -6/Zion | Megawrench repaired 5 parts 8645 | -6/Zion | Discovered new exit (range 9) 8647 | -6/Zion | Entered Proximity Caves 8648 | -5/Proximity Caves | Learned location of Warlord (-5) 8800 | -5/Proximity Caves | Entered Factory 8800 | -5/Factory | Evolved 2 slots: Propulsion x1, Utility x1 8801 | -5/Factory | Identified exit to Extension 8802 | -5/Factory | Identified exit to Upper Caves 8802 | -5/Factory | Identified exit to Factory 8961 | -5/Factory | Discovered exit to Factory (range 11) 8995 | -5/Factory | Fabricated Cld. Cesium-ion Thruster? 9004 | -5/Factory | Spotted B-75 Beast 9147 | -5/Factory | Repaired Cld. Nuclear Pulse Thruster 9245 | -5/Factory | Fabricated Cld. Cesium-ion Thruster? 9407 | -5/Factory | Repaired Cld. Nuclear Pulse Thruster 9513 | -5/Factory | Repaired Cld. Cesium-ion Thruster 9627 | -5/Factory | Fabricated Cld. Cesium-ion Thruster? 9716 | -5/Factory | Fabricated Cld. Cesium-ion Thruster? 9965 | -5/Factory | Fabricated Cld. Cesium-ion Thruster? 9968 | -5/Factory | Sucked down chute 9968 | -5/Factory | Entered Waste 9969 | -5/Waste | Joined by Warlord forces that had cleared the area 10020 | -5/Waste | Discovered new exit (range 13) 10090 | -5/Waste | A Compactor rumbled back to life 10090 | -5/Waste | Spotted C-40 Crusher 10090 | -5/Waste | Entered Factory 10090 | -5/Factory | Accompanied by 19 allies 10148 | -5/Factory | Discovered exit to Factory (range 5) 10152 | -5/Factory | Discovered exit to Upper Caves (range 12) 10164 | -5/Factory | Discovered exit to Upper Caves (range 16) 10306 | -5/Factory | Lost 8 allies 10313 | -5/Factory | Repaired Imp. Surge Thruster 10390 | -5/Factory | First assault squad dispatched 10431 | -5/Factory | Discovered exit to Factory (range 16) 10469 | -5/Factory | Entered Extension 10470 | -5/Extension | Loaded intel: 14 trap records 10471 | -5/Extension | Disrupted transfer network 10485 | -5/Extension | Rescued a captive Derelict 10486 | -5/Extension | Rescued a captive Derelict 10623 | -5/Extension | Rescued a captive Derelict 10625 | -5/Extension | Rescued a captive Derelict 10652 | -5/Extension | Lost 3 parts (2n1u) 10665 | -5/Extension | Rescued a captive Derelict 10769 | -5/Extension | First assault squad dispatched 10770 | -5/Extension | Local machine network offline 10811 | -5/Extension | Lost 3 allies 10836 | -5/Extension | Spotted B-75 Beast 10871 | -5/Extension | Spotted B-75 Beast 10904 | -5/Extension | Lost 4 parts (1p2n1u) 10916 | -5/Extension | Rescued A7 10963 | -5/Extension | Lost 8 allies 11083 | -5/Extension | Rescued a captive Derelict 11118 | -5/Extension | Rescued a captive Derelict 11121 | -5/Extension | Rescued a captive Derelict 11122 | -5/Extension | Rescued a captive Derelict 11164 | -5/Extension | Rescued a captive Derelict 11168 | -5/Extension | Rescued a captive Derelict 11171 | -5/Extension | Rescued a captive Derelict 11176 | -5/Extension | Discovered exit to Factory (range 10) 11176 | -5/Extension | Discovered new exit (range 6) 11233 | -5/Extension | Entered Cetus 11233 | -5/Cetus | Accompanied by 7 allies (A7) 11238 | -5/Cetus | Acquired a Cetus Manufacturing Module code from A7 11246 | -5/Cetus | Spotted Cetus Guard 11247 | -5/Cetus | Spotted Cetus Guard 11248 | -5/Cetus | Spotted Cetus Guard 11250 | -5/Cetus | Spotted Cetus Guard 11258 | -5/Cetus | Allies destroyed Cetus Guard 11269 | -5/Cetus | Destroyed Cetus Guard 11276 | -5/Cetus | Allies destroyed Cetus Guard 11291 | -5/Cetus | Lost 3 parts (1p2n) 11296 | -5/Cetus | Lost 4 allies 11318 | -5/Cetus | Core integrity fell below 50% 11363 | -5/Cetus | Lost 3 parts (1n2u) 11493 | -5/Cetus | Started Cetus Manufacturing Module 11518 | -5/Cetus | Manufactured an Enhanced Grunt 11525 | -5/Cetus | Build established: Scavenger-Mutant 11543 | -5/Cetus | Manufactured an Enhanced Grunt 11545 | -5/Cetus | Cetus Manufacturing Module disabled 11565 | -5/Cetus | Escorted A7 to Cetus Mainframe 11570 | -5/Cetus | Destroyed 7 combat bots 11654 | -5/Cetus | Discovered new exit (range 15) 11676 | -5/Cetus | Spotted Cetus Guard 11676 | -5/Cetus | Spotted Cetus Guard 11687 | -5/Cetus | Spotted Cetus Guard 11692 | -5/Cetus | Destroyed Cetus Guard 11704 | -5/Cetus | Destroyed Cetus Guard 11706 | -5/Cetus | Destroyed Cetus Guard 11718 | -5/Cetus | System corruption reached 10% 11718 | -5/Cetus | Spotted Cetus Guard 11718 | -5/Cetus | Destroyed Cetus Guard 11729 | -5/Cetus | Discovered exit to Factory (range 15) 11737 | -5/Cetus | Met Revision 17 11747 | -5/Cetus | Lost 3 parts (1p2w) 12102 | -5/Cetus | Lost 3 allies 12124 | -5/Cetus | Lost 4 parts (3n1u) 12155 | -5/Cetus | Extracted ID and sensor layout for unrecognized location from A7's data core 12167 | -5/Cetus | Entered Archives 12339 | -5/Archives | Unable to access archive contents 12340 | -5/Archives | Discovered new exit (range 14) 12343 | -5/Archives | Entered Hub_04(d) 12409 | -5/Hub_04(d) | Network Hub disabled 12409 | -5/Hub_04(d) | Spotted B-75 Beast 12412 | -5/Hub_04(d) | Spotted Lightning 12412 | -5/Hub_04(d) | Spotted Lightning 12414 | -5/Hub_04(d) | Spotted Lightning 12424 | -5/Hub_04(d) | Spotted Lightning 12431 | -5/Hub_04(d) | Network Hub disabled 12453 | -5/Hub_04(d) | Spotted Lightning 12453 | -5/Hub_04(d) | Spotted Lightning 12457 | -5/Hub_04(d) | Core integrity fell below 20% 12463 | -5/Hub_04(d) | Discovered exit to Factory (range 4) 12464 | -5/Hub_04(d) | Entered Factory 12464 | -4/Factory | Evolved 2 slots: Propulsion x2 12492 | -4/Factory | Lost 7 parts (1p4n1u1w) 12524 | -4/Factory | Identified exit to Upper Caves 12682 | -4/Factory | Spotted B-86 Titan 12722 | -4/Factory | Identified exit to Research 12821 | -4/Factory | Repaired Impulse Thruster 12869 | -4/Factory | Entered Upper Caves 12894 | -4/Upper Caves | Found Alien Artifact 12911 | -4/Upper Caves | Learned 12 Research zone layouts 12912 | -4/Upper Caves | Learned Armory emergency access door positions 12912 | -4/Upper Caves | Learned Research garrison access intel 12912 | -4/Upper Caves | Learned Armory garrison access intel 12981 | -4/Upper Caves | Discovered new exit (range 10) 13105 | -4/Upper Caves | Build established: Hacker-Sprinter 13591 | -4/Upper Caves | Learned 4 Research zone layouts 13872 | -4/Upper Caves | Entered another Upper Caves area 13874 | -4/Upper Caves | Discovered exit to Research (range 5) 13885 | -4/Upper Caves | Spotted B-86 Titan 13887 | -4/Upper Caves | Learned location of Quarantine (-2) 13920 | -4/Upper Caves | P-70 Sage assimilated allied ZX-KYL(k) 13962 | -4/Upper Caves | Discovered new exit (range 2) 13965 | -4/Upper Caves | Entered Zhirov 13965 | -4/Zhirov | Discovered new exit (range 3) 13971 | -4/Zhirov | Met Zhirov 13977 | -4/Zhirov | Learned location of Testing (-3) 13977 | -4/Zhirov | Learned location of Command (-1) 13979 | -4/Zhirov | Zhirov requested help retrieving the SGEMP Prototype 14020 | -4/Zhirov | Found Alien Artifact 14020 | -4/Zhirov | Identified Integrated Reactor 14020 | -4/Zhirov | Installed Integrated Reactor, increased core energy generation (+10) 14058 | -4/Zhirov | Found Alien Artifact 14074 | -4/Zhirov | Entered Proximity Caves 14115 | -3/Proximity Caves | Attracted the attention of an 0b10 outpost 14141 | -3/Proximity Caves | Spotted B-86 Titan 14225 | -3/Proximity Caves | Discovered exit to Research (range 6) 14227 | -3/Proximity Caves | Entered Research 14227 | -3/Research | Evolved 2 slots: Utility x2 14228 | -3/Research | Identified exit to Research 14228 | -3/Research | Identified exit to Testing 14228 | -3/Research | Identified exit to Armory 14229 | -3/Research | Loaded intel: 4 garrison access locations 14317 | -3/Research | Fabricated Lgt. Quantum Reactor (x2) 14384 | -3/Research | Identified Dimensional Node Initializer 14384 | -3/Research | Identified Transdimensional Reconstructor 14405 | -3/Research | Fabricated Cld. Nuclear Pulse Thruster (x1) 14549 | -3/Research | Found Prototype Processor 14599 | -3/Research | Spotted B-86 Titan 14691 | -3/Research | Garrison activated, responded to threat 14749 | -3/Research | Spotted B-86 Titan 14753 | -3/Research | Entered another Research area 14753 | -2/Research | Evolved 2 slots: Utility x2 14770 | -2/Research | Identified Exp. Signal Interpreter 14839 | -2/Research | Identified exit to Access 14910 | -2/Research | Entered Access 14910 | -1/Access | Evolved 2 slots: Propulsion x2 15083 | -1/Access | Destroyed 7 combat bots 15106 | -1/Access | Repaired Adv. Power Amplifier 15115 | -1/Access | Garrison activated, responded to threat 15125 | -1/Access | Spotted B-99 Colossus 15178 | -1/Access | Discovered new exit (range 5) 15179 | -1/Access | Identified exit to Surface 15192 | -1/Access | Fabricated Cld. Cesium-ion Thruster? 15200 | -1/Access | Lost 4 parts (2n1u1w) 15200 | -1/Access | Spotted B-99 Colossus 15318 | -1/Access | Lost 10 parts (1p6n1u2w) 15361 | -1/Access | Discovered new exit (range 7) 15362 | -1/Access | Entered Command 15480 | -1/Command | Disengaged cave seal 15515 | -1/Command | Spotted M Guard 15515 | -1/Command | Spotted M Guard 15518 | -1/Command | Lost 3 parts (1p1n1w) 15537 | -1/Command | Spotted Alpha 7 15570 | -1/Command | Spotted Combat Programmer 15570 | -1/Command | Spotted Combat Programmer 15581 | -1/Command | Met MAIN.C 15585 | -1/Command | 0b10 Conduit disabled 15612 | -1/Command | Lost 3 parts (2n1w) 15909 | -1/Command | Core integrity fell below 50% 15909 | -1/Command | Initialized slip node 15910 | -1/Command | Core integrity fell below 20% 15915 | -1/Command | Destroyed by Combat Programmer with EMDS Last Messages --------------- 15902_ Slug penetrates Reinforced Barrier. 15904_ EMDS Slug penetrates Reinforced Barrier. 15905_ Slug penetrates Reinforced Barrier. 15905_ Force Lance destroyed. 15905_ Adv. Corruption Screen intercepted 1% system corruption. 15906_ Combat Programmer resets Alpha 7, system corruption cleaned. 15906_ Penetrated by EMDS Slug. 15907_ Impulse Thruster Array destroyed. 15909_ Initializer activates and latches into the ground. 15909_ Combat Programmer resets Combat Programmer, system corruption cleaned. 15909_ Dimensional Slip Node implodes. 15911_ Penetrated by EMDS Slug. 15912_ Penetrated by Slug. 15912_ Slug penetrates 0b10 Conduit. 15914_ Knocked back. 15915_ Penetrated by EMDS Slug. Map ----- +----------------------------------------------------+ | ?????????????????????????????????????????????????? | | ?????????????????????????????????????????????????? | | ?????????????????????????????????????????????????? | | ?????????????????????????????????????????????????? | | ?????????????????????????????????????????????????? | | ?????????????????????????????????????????????????? | | ?????????????????????????????????????????????????? | | ?????????????????????????????????????????????????? | | ?????????????????????????????????????????????????? | | ?????????????????????????????????????????????????? | | ?????????????????????????????????????????????????? | | ?????????????????????????????????????????????????? | | ?????????????????????????????????????????????????? | | ?????????????????????????????????????????????????? | | ?????????????????????????????????????????????????? | | ?????????????????????????????????????????????????? | | ?????????????????????????????????????????????????? | | ?????????????????????????????????????????????????? | | ?????????????????????????????????????????????????? | | ?????????????????????????????????????????????????? | | ?????????????????????????????????????????????????? | | ??????????????????##################?????????????? | | ???????????????"""""" """" #?????????????? | | ???????????????" "" #?????????????? | | ?????????????????"" "" ############### | | ??????????????"""""""""""@ / | | ??????????????" " """ / | | ??????????????"" """""" / p | | ?????????????#"" """""" ############### | | ?????????????# " """ % #?????????????? | | ?????????????# " #?????????????? | | ?????????????# " YMMM ""#?????????????? | | ?????????????#"""" MMM """"""#?????????????? | | ?????????????#" MMMp """""#?????????????? | | ?????????????# """"""#?????????????? | | ?????????????# Y " #?????????????? | | ?????????????# " #?????????????? | | ?????????????" """" " #?????????????? | | ?????????????" """" #?????????????? | | ?????????????" 7 " " #?????????????? | | ?????????????# """ " ???????????????? | | ?????????????# " """""""???????????????? | | ?????????????#* " " " ???????????????? | | ?????????????#####################???????????????? | | ?????????????????????????????????????????????????? | | ?????????????????????????????????????????????????? | | ?????????????????????????????????????????????????? | | ?????????????????????????????????????????????????? | | ?????????????????????????????????????????????????? | | ?????????????????????????????????????????????????? | +----------------------------------------------------+ Best States ------------- Heat Dissipation 52 Energy Generation 67 Energy Capacity 650 Matter Stores 300 Matter Capacity 350 Sight Range 16 Terrain Scan Density 10 Jamming Range 12 Cloak Strength 4 Power Amplification 30 Additional Mass Support 9 Corruption Block 14 Armor Coverage 450 Propulsion Shielding 66 Utility Shielding 90 Phase Shifting 5 Evasion (%) 82 Targeting Accuracy 6 Melee Accuracy 6 Core Analysis 6 Recoil Reduction 3 Particle Charging 25 Kinecelleration 30 Offensive Hacking 33 Defensive Hacking 36 Authchip Count 1 Item Schematics ----------------- System Restoration Module | -7/Factory | Scanalyzed Imp. Propulsion Shielding | -7/Factory | Scanalyzed Rocket Launcher | -7/Factory | Scanalyzed Cld. Nuclear Pulse Thruster | -7/Factory | Scanalyzed Force Booster | -7/Factory | Extracted Propulsion Shielding | -7/Factory | Extracted Combat Drone Bay | -7/Data Miner | Free Lgt. Regenerative Plating | -7/Data Miner | Free Cld. Cesium-ion Thruster | -7/Data Miner | Free Gravity Neutralizer | -7/Data Miner | Free Imp. Heavy Machine Gun | -7/Data Miner | Free Antigrav System | -7/Data Miner | Free Imp. Dynamic Insulation System | -7/Data Miner | Free Lrn. Proton Cannon | -7/Data Miner | Free Adv. Terrain Scanner | -7/Data Miner | Free Arm. Medium Treads | -7/Data Miner | Free HERF Cannon | -7/Data Miner | Free Adv. Thermal Shield | -7/Data Miner | Free Hvy. Siege Treads | -6/Factory | Hacked Force Rifle | -6/Factory | Hacked Power Amplifier | -6/Factory | Hacked F-cell Engine | -6/Factory | Scanalyzed Gauss Rifle | -6/Factory | Scanalyzed Lyr. Light Armor Plating | -6/Factory | Scanalyzed Lrn. Sensor Array | -6/Factory | Hacked Adv. Hacking Suite | -6/Factory | Hacked Adv. Melee Analysis Suite | -6/Factory | Hacked Imp. Thermal Generator | -6/Factory | Hacked EM Disruption Field | -6/Factory | Hacked Imp. Force Booster | -6/Factory | Hacked Adv. System Shield | -6/Factory | Hacked Cld. Plasma Rifle | -6/Factory | Hacked Imp. System Guard | -6/Factory | Hacked System Shield | -6/Factory | Scanalyzed Chainsword | -6/Factory | Extracted Cld. VTOL Module | -5/Factory | Hacked Imp. Remote Force Field | -5/Factory | Hacked Antigrav Array | -5/Factory | Hacked Imp. Surge Thruster | -5/Factory | Scanalyzed Nuclear Pulse Thruster | -5/Factory | Scanalyzed Field Propulsion Drive | -5/Factory | Scanalyzed Rnf. Quantum Reactor | -5/Factory | Scanalyzed Hvy. Missile Launcher | -5/Factory | Scanalyzed Adv. Cooling System | -5/Factory | Scanalyzed Imp. Matter Compressor | -5/Factory | Scanalyzed Imp. Fusion Compressor | -4/Factory | Hacked Assault Drone Bay | -4/Zhirov | Free Exp. Heat Sink | -4/Zhirov | Free Exp. Optical Array | -4/Zhirov | Free Imp. Arc Thrower | -4/Zhirov | Free Adv. Launcher Guidance Computer | -3/Research | Hacked Nuclear Pulse Array | -3/Research | Scanalyzed Imp. Gyrokinetic Inverter | -3/Research | Scanalyzed Impulse Thruster | -2/Research | Scanalyzed Imp. Corruption Screen | -2/Research | Scanalyzed Field Propulsion Array | -2/Research | Scanalyzed Cld. Gravmag System | -2/Research | Scanalyzed Exp. Signal Interpreter | -2/Research | Scanalyzed Lgt. Quantum Reactor | -2/Research | Scanalyzed Mic. Antimatter Reactor | -2/Research | Extracted Launcher Loader | -2/Research | Extracted Matter Neutralizer | -2/Research | Extracted Imp. Focal Shield | -2/Research | Extracted Robot Schematics ------------------ E-15 Imp | -7/Data Miner | Free G-47 Trooper | -7/Data Miner | Free B-48 Gladiator | -7/Data Miner | Free L-41 Fighter | -7/Data Miner | Free G-50 Soldier | -7/Data Miner | Free X-67 Chaingunner | -7/Data Miner | Free K-01 Serf | -6/Factory | Hacked H-66 Slayer | -5/Factory | Hacked Fabricated ------------ System Restoration Module | x2 | -7/Factory Cld. Nuclear Pulse Thruster | x1 | -7/Factory | Preloaded Cld. Nuclear Pulse Thruster | x1 | -7/Factory Cld. Nuclear Pulse Thruster | x1 | -7/Factory Cld. Nuclear Pulse Thruster | x1 | -7/Factory | Authchip Cld. Nuclear Pulse Thruster | x1 | -7/Factory Cld. Cesium-ion Thruster | x1 | -6/Factory Cld. Nuclear Pulse Thruster | x1 | -6/Factory Cld. Cesium-ion Thruster | x1 | -6/Factory Cld. Cesium-ion Thruster | x1 | -5/Factory Cld. Cesium-ion Thruster | x1 | -5/Factory Cld. Cesium-ion Thruster | x1 | -5/Factory Cld. Cesium-ion Thruster | x1 | -5/Factory Cld. Cesium-ion Thruster | x1 | -5/Factory Lgt. Quantum Reactor | x2 | -3/Research | Preloaded Cld. Nuclear Pulse Thruster | x1 | -3/Research Cld. Cesium-ion Thruster | x1 | -1/Access Alien Tech Used ----------------- Integrated Reactor Dimensional Node Initializer Achievements -------------- Project G-00 Revising The Future Challenges ------------ None Game ------ Seed MakeshiftContainmentBrace Manual? 0 Play Time 04:27:31 Cumulative 165.1 hours Start 2024.04.12 @ 00:32:36 End 2024.04.12 @ 05:10:14 Sessions 1 Manual Loads 0 Difficulty Rogue Special Mode None Game No. 145 Rogue 145 Adventurer 0 Explorer 0 Win Type - Total 4 Types 4/0/0/0/0/0/0/0/0 Lore% 67 Gallery% 76 Achievement% 63 Wizard Run 0 Options --------- Layout 2 ASCII 1 Keyboard 0 Movement Mouse Keybinds 0 Fullscreen 2 Font 24/Smallcaps Map View 50x44 Zoom Use 0% Tactical HUD 1 Map Filters NONE Filters NONE Steam 1 RUN: a6a7059e-a78a-421d-acaf-4fd08b68fd26